Cogmind - Beta 17.1 @@@ ROGUE MODE // 2026.09.10 @ 17:24:34 Player: MolePlayingNice Result: Escaped! Performance ------------- Evolutions (9) 4500 Regions Visited (30) 6000 Robots Destroyed (545) 2725 Value Destroyed (29608) 29608 Prototype IDs (50) 1000 Alien Tech Used (10) 2000 Bonus (15299) 15299 TOTAL SCORE: 61132 Bonus ------- Triggered High Security 500 High Alert Combat Kills 6509 Follower Combat Kills 1223 Network Hubs Disabled 400 Met Imprinter 300 Destroyed Z-Imprinter 1000 Triggered Deep Caves Wall 500 Exposed GOLEM Chamber 500 Met Zhirov 300 Built Enhanced Grunts 300 Met R17 at Cetus 500 Found Hidden Lab 3000 Met R17 at Research 2000 Scanned by Researcher 500 Pursued by Intercept 500 Win 3000 Friendly Fire -5733 Cogmind --------- Core Integrity 1364/1600 Matter 235/300 Energy 1037/1350 System Corruption 0% +Membrane Temperature Cool (2) +ITN Movement Walking (227) Ox2 Location To Epsilon Eridani Parts ------- > --- POWER (3) -------- Improved Quantum Reactor > --- PROPULSION (4) --- Assembled Alloy Leg Centrium Leg > --- UTILITY (12) ----- High-capacity Storage Unit Assembled Biocell Array Assembled Combat Suite Advanced Weapon Cycler Powered Armor Medium Regenerative Plating Medium Regenerative Plating (fused) Improved Hardlight Generator Spacefold Activator > --- WEAPON (6) ------- Enhanced Quantum Rifle Matter Neutralizer Matter Neutralizer Assembled Focal Cannon > --- INVENTORY (20) --- Biometal Leg Experimental Heat Sink Experimental Cooling System Experimental Cooling System Experimental Cooling System Advanced Energy Well (500) Long-range Sensor Array Heavy Servo Lattice Heavy Servo Lattice Subatomic Replicator Immobilizer Enhanced Nova Cannon Potential Cannon Peak State ------------ > --- POWER ------------ Assembled Flux Generator Improved Quantum Reactor > --- PROPULSION ------- Assembled Alloy Leg Heavy Shield Leg Experimental Biometal Leg > --- UTILITY ---------- High-capacity Storage Unit Assembled Biocell Array Experimental Optical Array Long-range Sensor Array Experimental Signal Interpreter Assembled Combat Suite Heavy Servo Lattice Assembled Alloy Armor Medium Regenerative Plating Quantum Router GOLEM Unit > --- WEAPON ----------- Matter Neutralizer Matter Neutralizer Assembled Focal Cannon Assembled Focal Cannon Enhanced Nova Cannon Enhanced Nova Cannon > --- INVENTORY -------- Quantum Reactor Centrium Leg Experimental Heat Sink Experimental Cooling System Experimental Cooling System Advanced Energy Well Heavy Servo Lattice Powered Armor Powered Armor Medium Regenerative Plating Improved Hardlight Generator Subatomic Replicator Spacefold Activator Enhanced Quantum Rifle Enhanced Nova Cannon Potential Cannon Gamma Bomb Array [Rating: 220] Favorites ----------- Power Assembled Flux Generator Engine Improved Deuterium Engine Power Core Neutrino Core Reactor Assembled Flux Generator Propulsion Assembled Alloy Leg Treads Light Treads Leg Assembled Alloy Leg Utility High-capacity Storage Unit Device GOLEM Unit Storage High-capacity Storage Unit Processor Improved Signal Interpreter Hackware Hacking Suite Protection Medium Regenerative Plating Artifact Spacefold Activator Weapon Assembled Focal Cannon Energy Gun Small Laser Energy Cannon Assembled Focal Cannon Ballistic Gun Enhanced Autogun Ballistic Cannon Gauss Cannon Launcher Heavy Rocket Launcher Special Weapon Plasma Cutter Impact Weapon Makeshift Hammer Build | -11 -10 -10 -10 -9 -8 -7 -7 -7 -7 -7 -6 -6 -6 -6 -6 -6 -5 -5 -5 -5 -4 -4 -4 -4 -3 -3 -2 -2 -2 -1 ------- Run | Yrd Mat Min Exi Min Mat Fac Low Low Zio Dee Pro Fac Ext Cet Arc Hub Fac Upp Upp Zhi Pro Fac Arm Lab Res Qua Res Tes Sec Acc Slots Evolved 18 | . . . . . 4 2 . . . . . 2 . . . . 2 . . . . 2 . . 2 . 2 . . 2 Power 2 | . . . . . . . . . . . . 1 . . . . . . . . . . . . 1 . . . . . Propulsion 2 | . . . . . . . . . . . . . . . . . . . . . . 1 . . . . 1 . . . Utility 10 | . . . . . 3 2 . . . . . 1 . . . . 2 . . . . 1 . . . . 1 . . . Weapon 4 | . . . . . 1 . . . . . . . . . . . . . . . . . . . 1 . . . . 2 Parts Attached 240 | . 7 3 1 5 30 47 2 2 1 16 1 5 11 6 2 3 7 2 2 1 . 6 14 5 5 8 22 11 3 12 Power 33 | . 2 . . . 3 5 . 1 . . . . 2 1 . . . . . . . . 3 2 . 1 8 3 . 2 Engine 8 | . 2 . . . 2 3 . 1 . . . . . . . . . . . . . . . . . . . . . . Core 6 | . . . . . 1 2 . . . . . . 2 . . . . . . . . . 1 . . . . . . . Reactor 19 | . . . . . . . . . . . . . . 1 . . . . . . . . 2 2 . 1 8 3 . 2 Propulsion 28 | . 2 . . 1 5 8 . . . 1 . . . . . . . 2 . . . . 1 . . . 4 2 . 2 Treads 15 | . 2 . . 1 5 6 . . . 1 . . . . . . . . . . . . . . . . . . . . Leg 13 | . . . . . . 2 . . . . . . . . . . . 2 . . . . 1 . . . 4 2 . 2 Wheel . | . . . . . . . . . . . . . . . . . . . . . . . . . . . . . . . Hover . | . . . . . . . . . . . . . . . . . . . . . . . . . . . . . . . Flight . | . . . . . . . . . . . . . . . . . . . . . . . . . . . . . . . Utility 112 | . 2 1 1 1 10 20 1 1 . 7 1 5 5 4 2 3 5 . 1 1 . 5 8 2 4 3 7 4 3 5 Device 51 | . 2 1 . 1 7 9 . . . 3 1 2 1 . 1 . 3 . 1 1 . 3 2 1 2 2 4 2 . 2 Storage 11 | . . . 1 . 1 . . . . 1 . 1 3 1 . . . . . . . . 1 . . . 2 . . . Processor 12 | . . . . . . 3 . . . 1 . 1 . . . 1 1 . . . . 1 2 . . . . 1 1 . Hackware 14 | . . . . . . 2 . . . . . . 1 . 1 2 1 . . . . . . . 2 1 1 1 . 2 Protection 23 | . . . . . 2 6 1 1 . 2 . 1 . 3 . . . . . . . 1 3 1 . . . . 1 1 Artifact 1 | . . . . . . . . . . . . . . . . . . . . . . . . . . . . . 1 . Weapon 67 | . 1 2 . 3 12 14 1 . 1 8 . . 4 1 . . 2 . 1 . . 1 2 1 1 4 3 2 . 3 Energy Gun 16 | . 1 1 . 2 4 3 . . . 2 . . . . . . . . . . . . . 1 . . . . . 2 Energy Cannon 26 | . . . . . 4 5 1 . . 2 . . . . . . 2 . 1 . . 1 2 . 1 2 3 1 . 1 Ballistic Gun 10 | . . 1 . 1 4 . . . . 2 . . . 1 . . . . . . . . . . . 1 . . . . Ballistic Cannon 8 | . . . . . . 3 . . . . . . 4 . . . . . . . . . . . . . . 1 . . Launcher 5 | . . . . . . 2 . . . 2 . . . . . . . . . . . . . . . 1 . . . . Special Weapon 1 | . . . . . . . . . 1 . . . . . . . . . . . . . . . . . . . . . Impact Weapon 1 | . . . . . . 1 . . . . . . . . . . . . . . . . . . . . . . . . Slashing Weapon . | . . . . . . . . . . . . . . . . . . . . . . . . . . . . . . . Piercing Weapon . | . . . . . . . . . . . . . . . . . . . . . . . . . . . . . . . Special Melee Weapon . | . . . . . . . . . . . . . . . . . . . . . . . . . . . . . . . Unidentified Prototypes 39 | . . . . . 2 3 . . . 4 . . . 3 . . . 2 . 2 . 1 4 2 1 3 1 4 6 1 Corrupted Parts 2 | . . . . 1 . . . . . . . . . 1 . . . . . . . . . . . . . . . . System Corruption 5 | . . . . 1 . . . . . . . . . 4 . . . . . . . . . . . . . . . . Parts Lost 59 | . . 1 . 2 8 6 . . . 5 1 9 2 . . . . . . . 1 . 1 . . 2 5 1 . 15 Power 7 | . . . . . 1 . . . . 1 . 1 . . . . . . . . . . . . . . . 1 . 3 Propulsion 11 | . . . . 1 3 1 . . . 3 . . . . . . . . . . . . . . . . . . . 3 Utility 28 | . . . . 1 3 2 . . . 1 . 7 2 . . . . . . . 1 . 1 . . 1 4 . . 5 Weapon 13 | . . 1 . . 1 3 . . . . 1 1 . . . . . . . . . . . . . 1 1 . . 4 Highest Loss Streak 13 | . . 1 . 2 3 1 . . . 5 1 8 1 . . . . . . . 1 . 1 . . 2 3 1 . 13 To Critical Strikes . | . . . . . . . . . . . . . . . . . . . . . . . . . . . . . . . Average Backups 17 | . 5 8 8 12 19 18 18 19 18 17 14 12 13 18 18 18 16 18 18 18 18 18 18 15 17 17 18 19 18 17 Power 1 | . 1 1 1 1 1 . . . 1 . . . . 2 2 2 2 2 2 2 2 2 2 . . . . . . . Propulsion 2 | . 2 3 3 3 5 3 4 3 2 2 3 2 1 1 1 1 1 2 2 2 2 1 1 . 1 1 . 1 1 . Utility 5 | . . 2 2 1 2 4 5 5 4 4 6 4 5 6 7 7 5 7 7 7 6 7 7 4 8 7 5 7 8 10 Weapon 7 | . 1 2 2 5 10 8 8 9 9 8 4 3 5 7 7 8 7 7 6 7 7 7 7 8 5 5 6 6 4 4 Tool/Special . | . . . . . . . . . . . . . . . . . . . . . . . . . . . . . . . Unused Backups 92 | . 4 1 2 1 15 21 . 1 2 . . 2 6 2 2 . 1 . . 1 . . 4 3 3 5 8 1 2 5 Power 9 | . 2 . . . 1 3 . . . . . . . 1 1 . . . . . . . . . . . 1 . . . Propulsion 19 | . 2 . . . 4 5 . 1 1 . . 1 2 1 . . 1 . . . . . . . . . 1 . . . Utility 26 | . . . 2 1 3 4 . . 1 . . . 1 . 1 . . . . 1 . . . 1 2 3 1 1 1 3 Weapon 35 | . . 1 . . 7 9 . . . . . 1 3 . . . . . . . . . 4 2 1 2 3 . 1 1 Tool/Special 3 | . . . . . . . . . . . . . . . . . . . . . . . . . . . 2 . . 1 Average Slot Usage (%) 91 | . 99 100 100 99 92 96 99 99 98 89 91 86 87 86 85 85 87 87 88 74 88 88 95 71 99 99 95 89 85 90 Engine 2 | . 14 14 14 14 8 6 . . . 3 7 . . . . . . . . . . . . . . . . . . . Core 1 | . . . . . . . 7 6 7 3 . . 3 1 . . . . . . . . 1 1 3 4 2 . . . Reactor 3 | . . . . . . . . . . . . 5 4 5 6 6 5 5 5 5 5 5 6 . 9 9 10 11 8 8 Treads 6 | . 25 28 28 27 17 13 15 15 15 6 . . . . . . . . . . . . . . . . . . . . Leg 8 | . 2 . . . . 1 . . . 7 15 13 13 13 11 13 11 10 11 11 11 15 15 15 14 14 16 13 13 14 Device 18 | . 13 14 14 13 23 20 15 15 15 12 23 22 18 16 11 12 22 22 23 23 19 15 14 14 15 19 22 17 16 14 Storage 9 | . 14 14 14 14 9 7 7 7 7 10 15 12 13 13 13 13 11 11 11 11 11 10 10 10 9 9 7 8 8 8 Processor 6 | . . . . . . 3 15 15 15 7 . . 6 6 6 6 2 5 5 5 5 9 10 10 9 9 8 8 8 7 Hackware 1 | . . . . . . 6 . . . . . . 1 . . . 3 . . . . . . . . . . . . 1 Protection 10 | . . . . . 5 11 14 14 15 12 7 10 6 9 14 12 10 11 11 11 14 15 19 6 16 12 8 12 13 12 Energy Gun 1 | . 14 14 14 14 5 . . . . 1 . . . . . . . . . . . . . . . . . . . 1 Energy Cannon 14 | . . . . . 14 13 15 15 13 18 20 13 13 13 17 19 16 16 16 4 17 14 14 10 18 18 16 16 16 22 Ballistic Gun 1 | . 14 14 14 13 7 2 . . . . . . . 2 . . . . . . . . . . . . . . . . Ballistic Cannon 1 | . . . . . . 4 7 7 6 . 1 6 5 3 1 . . . . . . . . . . . . . . . Peak Build Rating 220 | . 8 8 8 12 41 53 50 51 50 102 105 128 116 126 128 126 143 143 133 132 138 157 159 160 175 182 195 209 210 220 Average Rating 107 | . 7 7 8 8 35 46 49 50 49 72 99 117 109 122 121 121 131 130 130 113 137 152 154 119 174 175 190 199 202 214 On Entrance 101 | 6 6 8 8 8 12 40 50 50 50 50 100 105 107 108 124 122 102 130 131 131 132 138 151 159 159 175 175 195 201 199 Avg Prop Armor Cover (%) . | . . . . . . . . . . . . . . . . . . . . . . . . . . . . . . . Naked Turns . | . . . . . . . . . . . . . . . . . . . . . . . . . . . . . . . Heaviest Build 220 | 12 15 15 49 52 86 119 119 119 102 120 91 134 112 138 141 147 143 143 143 143 145 147 154 154 180 183 199 199 198 220 Greatest Support 120 | 20 40 40 40 43 46 42 40 40 40 60 60 60 60 60 60 60 80 60 60 60 60 80 90 90 90 90 120 118 118 118 Greatest Overweight (x) 28 | . . . 1 1 2 2 2 2 2 28 1 2 3 2 2 4 2 2 2 2 2 1 1 1 1 2 1 1 1 2 Average Overweight (x) 1 | . . . . 1 1 1 2 2 2 1 1 1 1 1 2 1 1 2 2 1 2 1 1 . 1 1 1 1 1 1 Largest Inventory Capacity 20 | . 8 8 20 20 20 20 20 20 20 20 20 20 20 20 20 20 20 20 20 20 20 20 20 20 20 20 20 20 20 20 Average Capacity 19 | . 8 8 11 20 20 20 20 20 20 19 20 16 15 20 20 20 20 20 20 20 20 20 20 20 20 20 20 20 20 20 Most Carried 20 | . 8 8 9 16 20 20 20 20 20 20 20 20 18 20 20 20 20 20 20 20 20 20 20 20 20 20 20 20 20 20 Average Carried 18 | . 5 8 8 12 19 19 19 19 19 18 19 15 14 19 19 19 17 19 19 19 19 19 19 17 19 19 19 19 19 18 Final Capacity 20 | 8 8 8 20 20 20 20 20 20 20 20 20 10 20 20 20 20 20 20 20 20 20 20 20 20 20 20 20 20 20 20 Final Carried 20 | 6 8 8 9 16 20 19 20 20 20 20 19 10 18 20 20 19 19 20 19 20 20 19 20 20 20 20 20 20 17 14 Class Distribution -------------------- 28% | Golem 15% | Skirmisher 14% | Tank 11% | Scavenger-Tank 5% | Commander-Golem 4% | Mutant 3% | Scavenger-Skirmisher 3% | Hacker-Tank Dominant Class ---------------- Mutant | -10/Materials Mutant | -10/Mines Mutant | -10/Exiles Scavenger-Mutant | -9/Mines Scavenger-Tank | -8/Materials Tank | -7/Factory Tank | -7/Lower Caves Tank | -7/Lower Caves Tank | -7/Zion Golem | -7/Deep Caves Golem | -6/Proximity Caves Golem | -6/Factory Golem | -6/Extension Commander-Golem | -6/Cetus Commander-Golem | -6/Archives Commander-Golem | -6/Hub_04(d) Golem | -5/Factory Golem | -5/Upper Caves Golem | -5/Upper Caves Golem | -5/Zhirov Golem | -4/Proximity Caves Golem | -4/Factory Scavenger-Tank | -4/Armory Skirmisher | -4/Lab Skirmisher | -3/Research Skirmisher | -3/Quarantine Scavenger-Skirmisher | -2/Research Scientist-Skirmisher | -2/Testing Skirmisher | -2/Section 7 Hacker-Executioner | -1/Access Resources | -11 -10 -10 -10 -9 -8 -7 -7 -7 -7 -7 -6 -6 -6 -6 -6 -6 -5 -5 -5 -5 -4 -4 -4 -4 -3 -3 -2 -2 -2 -1 ----------- Run | Yrd Mat Min Exi Min Mat Fac Low Low Zio Dee Pro Fac Ext Cet Arc Hub Fac Upp Upp Zhi Pro Fac Arm Lab Res Qua Res Tes Sec Acc Matter Collected 8396 | 200 71 92 20 72 790 1528 104 160 113 698 378 342 562 339 61 107 157 140 146 . 105 120 265 . 268 180 392 394 405 187 Remotely . | . . . . . . . . . . . . . . . . . . . . . . . . . . . . . . . Salvage Created 30077 | . 135 165 . 245 2357 3386 . 220 . 618 729 1156 1569 293 250 272 732 207 308 . 330 742 2080 . 482 889 3750 2065 3122 3975 Parts 1391 | . 9 11 . 25 115 165 . 11 . 19 24 37 78 18 18 18 36 11 6 . 16 35 112 . 20 43 186 90 147 141 Haulers Intercepted 12 | . . . . . 4 3 . . . . . . 1 . . . . . . . . . . . 1 . 2 . . 1 Recyclers Shooed 7 | . . . . . 2 2 . . . . . 1 . . . . . . . . . . . . . . 1 . . 1 Parts Field Recycled . | . . . . . . . . . . . . . . . . . . . . . . . . . . . . . . . Retrieved Matter . | . . . . . . . . . . . . . . . . . . . . . . . . . . . . . . . Parts Self-Destructed 67 | . . . . . . . . 11 . . 25 . . . . . . 9 6 . 16 . . . . . . . . . Prevented . | . . . . . . . . . . . . . . . . . . . . . . . . . . . . . . . Parts Restored . | . . . . . . . . . . . . . . . . . . . . . . . . . . . . . . . Kills | -11 -10 -10 -10 -9 -8 -7 -7 -7 -7 -7 -6 -6 -6 -6 -6 -6 -5 -5 -5 -5 -4 -4 -4 -4 -3 -3 -2 -2 -2 -1 ------- Run | Yrd Mat Min Exi Min Mat Fac Low Low Zio Dee Pro Fac Ext Cet Arc Hub Fac Upp Upp Zhi Pro Fac Arm Lab Res Qua Res Tes Sec Acc Combat Hostiles Destroyed 457 | . 3 5 . 10 38 59 . 5 . 44 15 17 25 3 . 4 11 8 6 . 5 10 31 . 2 11 38 24 36 47 Melee 1 | . . . . . . . . . . 1 . . . . . . . . . . . . . . . . . . . . Guns 44 | . 3 5 . 10 18 7 . . . . . . . . . . . . . . . . . . . . . . . 1 Cannons 325 | . . . . . 19 43 . 5 . 4 13 15 21 3 . 4 11 3 6 . 5 10 28 . 2 10 33 22 36 32 AOE 57 | . . . . . . 8 . . . 36 . 2 4 . . . . 5 . . . . . . . . . . . 2 Classes Destroyed 28 | . 1 2 . 1 8 3 . . . 3 2 . . . . . . . . . . . 5 . . 1 . . 1 1 Worker 21 | . . . . . 4 7 . . . . . 1 2 . . . . . . . . . . . 1 1 1 . 3 1 Builder 24 | . . . . . 1 1 . . . . . 2 4 . . 1 . . . . . 1 . . 3 . 2 1 3 5 Tunneler 7 | . . 1 . . . 2 . . . . . . 2 . . . 1 . . . . . . . . . . . . 1 Hauler 12 | . . . . . 4 3 . . . . . . 1 . . . . . . . . . . . 1 . 2 . . 1 Recycler 20 | . . . . . 3 5 . . . . . 2 2 . . . . . . . . . . . 1 . 2 1 3 1 Mechanic 2 | . . . . . . . . . . . . . . . . . . . . . . . 1 . . . . 1 . . Operator 18 | . . . . . 2 2 . . . . . . 2 . 7 . . . . . . . . . 2 1 . 1 1 . Drone 2 | . . . . . . . . . . . 2 . . . . . . . . . . . . . . . . . . . Watcher 21 | . . . . . 2 1 . . . . . . 1 1 . 1 1 . . . . . 3 . . 2 5 . 2 2 Swarmer 40 | . . . . 7 4 5 . . . . 1 . 4 . . . . 6 . . . . . . . . . . 10 3 Saboteur 4 | . . . . . . . . . . . . . . . . . . . . . . . 3 . . . . . . 1 Grunt 140 | . 3 3 . 3 25 29 . 3 . . 7 11 12 . . . 3 1 1 . . 3 3 . 2 . 5 9 6 11 Brawler 10 | . . . . . . 3 . . . . 1 . . . . . . . . . . . 1 . . . 1 2 1 1 Duelist 17 | . . . . . 2 4 . 1 . . 2 2 . . . . . . 2 . . . . . . . . 1 . 3 Researcher 1 | . . . . . . . . . . . . . . . . . . . . . . . . . . . . . 1 . Sentry 47 | . . . . . 7 6 . . . . 1 . 7 . . 2 2 1 1 . 1 3 5 . . . 2 2 5 2 Demolisher 1 | . . . . . . . . . . . . . . . . . . . . . . . 1 . . . . . . . Specialist 4 | . . . . . . . . . . . . . . . . . . . . . . . 4 . . . . . . . Hunter 41 | . . . . . . 1 . . . . . 2 1 . . 1 . . . . 2 . 6 . . 2 11 3 5 7 Programmer 78 | . . . . . . 11 . 1 . . . 2 . . . 1 6 . 1 . 2 4 7 . . 8 17 7 8 3 Heavy 2 | . . . . . . . . . . . . . . . . . . . . . . . 1 . . . . . . 1 Q-Series 7 | . . . . . . . . . . . . . . . . . . . . . . . . . . . . . . 7 Behemoth 5 | . . . . . . . . . . . 1 . 1 . . . . . 1 . . . . . . . 2 . . . Cetus Guard 3 | . . . . . . . . . . . . . . 3 . . . . . . . . . . . . . . . . S7 Guard 1 | . . . . . . . . . . . . . . . . . . . . . . . . . . . . . 1 . Tracker 4 | . . . . . . . . . . . . . . . . . . . . . . . . . . . . . . 4 Combat Programmer 4 | . . . . . . . . . . . . . . . . . . . . . . . . . . . . . . 4 Alpha 7 1 | . . . . . . . . . . . . . . . . . . . . . . . . . . 1 . . . . Z-Light 2 | . . . . . . . . . . 2 . . . . . . . . . . . . . . . . . . . . Assembler 2 | . . . . . . . . . . 2 . . . . . . . . . . . . . . . . . . . . Assembled 40 | . . 2 . . . . . . . 38 . . . . . . . . . . . . . . . . . . . . Golem 3 | . . . . . . . . . . 3 . . . . . . . . . . . . . . . . . . . . Best Kill Streak 37 | . 2 3 . 4 7 11 . 4 . 37 6 9 14 2 2 1 3 5 3 . 2 5 6 . 3 4 11 5 10 15 Combat Bots Only 35 | . 2 3 . 4 6 4 . 4 . 35 6 7 6 2 . 1 3 5 3 . 2 5 5 . 1 3 4 4 6 10 Max Kills in Single Turn 29 | . 1 1 . 1 3 7 . 1 . 29 1 3 4 1 1 1 1 4 1 . 1 2 2 . 2 2 2 3 3 3 Gunslinging 2 | . . . . . 2 . . . . . . . . . . . . . . . . . . . . . . . . . Exploded 28 | . . . . . . 4 . . . 28 . 2 2 . . . . 4 . . . . . . . . . . . 1 Melee 1 | . . . . . . . . . . 1 . . . . . . . . . . . . . . . . . . . . Uniques/NPCs Destroyed 2 | . . . . . . . . . . 1 . . . 1 . . . . . . . . . . . . . . . . Z-Imprinter (-7/Deep Caves) A7 (-6/Cetus) Combat | -11 -10 -10 -10 -9 -8 -7 -7 -7 -7 -7 -6 -6 -6 -6 -6 -6 -5 -5 -5 -5 -4 -4 -4 -4 -3 -3 -2 -2 -2 -1 -------- Run | Yrd Mat Min Exi Min Mat Fac Low Low Zio Dee Pro Fac Ext Cet Arc Hub Fac Upp Upp Zhi Pro Fac Arm Lab Res Qua Res Tes Sec Acc Hostile Shots Fired 2416 | . 13 17 . 53 174 331 . 18 . 68 95 111 195 2 . 88 50 14 65 . 31 39 131 . 22 84 230 156 153 276 Missed 822 | . 3 5 . 15 49 118 . 4 . 10 25 19 83 1 . 25 17 7 32 . 12 14 55 . 10 36 100 57 46 79 Deflected 5 | . . . . . . . . . . . . . . . . . . . . . . . . . . . . . 2 3 Hits 1594 | . 10 12 . 38 125 213 . 14 . 58 70 92 112 1 . 63 33 7 33 . 19 25 76 . 12 48 130 99 107 197 Melee 53 | . . 3 . . . 13 . . . 2 . 5 . . . . . . . . . . 3 . . . . 2 5 20 Projectile 1541 | . 10 9 . 38 125 200 . 14 . 56 70 87 112 1 . 63 33 7 33 . 19 25 73 . 12 48 130 97 102 177 AOE 4 | . . . . 1 . . . . . . . . . . . . . . . . . . 3 . . . . . . . Critical Strikes 60 | . . 1 . . 4 7 . . . 2 1 4 2 1 . 5 2 . . . 1 2 2 . 1 4 7 4 5 5 Part Disruptions 8 | . . . . . . . . . . . . . . . . 3 . . . . 1 1 1 . . . . . . 2 Damage Taken 26784 | . 132 192 . 370 1820 3167 . 211 . 1849 969 1504 628 35 . 1309 504 58 465 . 279 445 1131 . 195 733 2776 1805 1886 4321 Core 2033 | . . 66 . 59 206 239 . 66 . 137 122 130 35 23 . 18 61 13 78 . . 30 63 . 13 70 214 76 78 236 Absorbed by Shields 1575 | . . . . . . . . . . . . . 427 32 . 52 36 28 88 . 16 . 182 . . 96 186 156 144 132 Ignored by Resistances 3525 | . . . . . . . . . . 137 188 292 220 14 . 261 110 19 111 . 60 94 271 . 43 164 . 307 414 820 Regen/Repaired (Parts) 3878 | . . . . . . . . . . . . . . 31 224 23 388 7 67 . 69 63 327 . 60 152 611 337 1059 460 Core Remaining (%) 72 | 100 . . . 50 62 . . . . . 19 . . . . 75 . . . . 84 . . 100 . 93 . . 53 85 Volleys Fired 1424 | . 7 17 . 21 107 170 . 8 1 48 42 67 70 83 15 19 45 8 22 . 13 45 104 13 26 95 89 83 95 111 Largest 6 | . 2 2 . 2 3 3 . 3 1 3 3 3 3 3 3 3 3 3 3 . 3 3 3 1 4 4 4 4 4 6 Hottest 540 | . 70 70 . 60 170 200 . 200 80 214 145 130 98 94 94 98 140 140 180 . 140 220 155 25 260 260 443 283 290 540 Shots Fired 3466 | . 14 32 . 43 318 469 . 22 1 74 105 148 162 102 43 39 88 17 53 . 27 78 223 14 62 168 267 195 269 433 Gun 402 | . 14 32 . 43 166 81 . . . 5 . . . 43 1 . . . . . . . . . . . . . . 17 Cannon 3018 | . . . . . 152 385 . 22 1 49 105 148 156 59 42 39 88 15 49 . 27 78 223 14 62 168 265 195 269 407 Launcher 46 | . . . . . . 3 . . . 20 . . 6 . . . . 2 4 . . . . . . . 2 . . 9 Special . | . . . . . . . . . . . . . . . . . . . . . . . . . . . . . . . Kinetic 439 | . 7 16 . 21 86 144 . 8 . . 12 44 49 49 2 1 . . . . . . . . . . . . . . Thermal 2951 | . 6 16 . 22 232 322 . 14 1 26 93 104 107 53 41 38 88 15 49 . 27 78 223 14 62 168 265 195 269 423 Explosive 35 | . . . . . . 3 . . . 20 . . 6 . . . . 2 4 . . . . . . . . . . . Electromagnetic 41 | . 1 . . . . . . . . 28 . . . . . . . . . . . . . . . . 2 . . 10 Robot Hit Streak 37 | . 7 6 . 16 21 15 . 5 . 8 16 22 15 22 9 3 15 7 23 . 9 11 31 . 7 9 20 16 12 37 Robot Miss Streak 12 | . 1 6 . 3 5 12 . 3 . 2 5 3 5 4 2 2 2 1 2 . 1 2 3 . 3 3 4 4 4 8 Penetration Max 1 | . . . . . . . . . . . . 1 1 1 . . . . . . . . . . . . . . . . Secondary Targets 34 | . 1 . . 3 2 . . . . . . . . . . . . . . . . . . . . . 1 12 9 6 Max Gunslinging Chain 2 | . 1 . . 1 2 . . . . . . . . . . . . . . . . . . . . . 1 2 2 1 Shots Hit Robots 1894 | . 12 20 . 29 188 260 . 11 . 31 68 85 95 63 25 14 46 8 37 . 17 31 112 . 19 55 155 102 161 250 Core Hits 1003 | . 7 11 . 15 87 130 . 7 . 86 24 30 62 15 11 8 15 9 10 . 8 16 51 . 10 25 87 50 79 150 Critical Kills 18 | . . . . 1 . 1 . . . . 1 . 2 . . . . . . . . . 2 . 1 1 2 2 . 5 Critical Parts Destroyed 7 | . . . . . . 1 . . . . . . 1 5 . . . . . . . . . . . . . . . . Critical Strikes 42 | . . 1 . 1 1 4 . 1 . . 2 8 5 6 . . . . . . . . 2 . 1 1 2 2 . 5 Burn 2 | . . 1 . . 1 . . . . . . . . . . . . . . . . . . . . . . . . . Meltdown 15 | . . . . . . 1 . . . . 1 . . . . . . . . . . . 2 . 1 1 2 2 . 5 Destroy 12 | . . . . 1 . 1 . . . . . . 4 6 . . . . . . . . . . . . . . . . Blast 13 | . . . . . . 2 . 1 . . 1 8 1 . . . . . . . . . . . . . . . . . Melee Attacks 14 | . . . . . . 3 . . . 11 . . . . . . . . . . . . . . . . . . . . Impact 14 | . . . . . . 3 . . . 11 . . . . . . . . . . . . . . . . . . . . Slashing . | . . . . . . . . . . . . . . . . . . . . . . . . . . . . . . . Piercing . | . . . . . . . . . . . . . . . . . . . . . . . . . . . . . . . Sneak Attacks . | . . . . . . . . . . . . . . . . . . . . . . . . . . . . . . . Combat Hostiles . | . . . . . . . . . . . . . . . . . . . . . . . . . . . . . . . Follow-up Attacks . | . . . . . . . . . . . . . . . . . . . . . . . . . . . . . . . Damage Inflicted 81577 | . 147 280 . 328 3933 7797 . 335 . 4390 2243 3884 5375 1765 1177 913 2227 715 1862 . 838 1481 5317 . 1359 2552 7863 5021 7899 11876 Guns 3865 | . 147 280 . 324 1661 822 . . . 57 . . . 218 7 . . . . . . . . . . . . . . 349 Cannons 67688 | . . . . . 2219 5737 . 335 . 608 2243 3594 4634 1547 1170 904 2207 341 1609 . 838 1481 5317 . 1145 2537 7477 4841 7277 9627 Explosions 9347 | . . . . . . 1095 . . . 3600 . 269 741 . . . . 374 253 . . . . . . . 370 180 588 1877 Melee 125 | . . . . . . . . . . 125 . . . . . . . . . . . . . . . . . . . . Ramming 552 | . . . . 4 53 143 . . . . . 21 . . . 9 20 . . . . . . . 214 15 16 . 34 23 Kinetic 5008 | . 58 153 . 134 846 1606 . 119 . . 222 616 888 312 33 21 . . . . . . . . . . . . . . Thermal 66489 | . 77 127 . 190 3034 4953 . 216 . 237 2021 3247 3746 1453 1144 883 2207 341 1609 . 838 1481 5317 . 1145 2537 7477 4841 7277 10091 Explosive 6937 | . . . . . . 1095 . . . 3537 . . 741 . . . . 374 253 . . . . . . . . 180 588 169 Electromagnetic 2466 | . 12 . . . . . . . . 491 . . . . . . . . . . . . . . . . 370 . . 1593 Impact 125 | . . . . . . . . . . 125 . . . . . . . . . . . . . . . . . . . . Slashing . | . . . . . . . . . . . . . . . . . . . . . . . . . . . . . . . Piercing . | . . . . . . . . . . . . . . . . . . . . . . . . . . . . . . . Highest Corruption 14 | . . . . 1 . 8 8 8 8 . . 2 2 6 6 5 4 2 2 2 2 . 1 1 . 4 7 10 14 . Average Corruption 4 | . . . . 1 . 3 8 8 8 . . 1 2 5 4 3 1 2 2 2 2 . 1 1 . 2 5 9 11 . Corruption Purged 10 | . . . . . . . . . . . . . . . 6 . 4 . . . . . . . . . . . . . Corruption Blocked . | . . . . . . . . . . . . . . . . . . . . . . . . . . . . . . . Effects 455 | . . . . . . 93 8 30 2 . . 2 29 21 3 1 14 14 15 4 18 . 5 18 . 23 33 63 59 . Message Errors 115 | . . . . . . 24 3 5 . . . . 10 4 1 . 4 7 4 2 6 . 1 4 . 8 9 10 13 . Matter Fused 112 | . . . . . . 25 1 11 . . . 1 5 4 . . 3 2 3 2 5 . 2 5 . 4 6 21 12 . Heat Flow Errors 59 | . . . . . . 14 . 4 . . . . 4 5 1 . 3 1 . . 4 . . . . 3 5 7 8 . Energy Discharges 46 | . . . . . . 10 . 1 1 . . . . 2 1 . . . 5 . . . 1 5 . 2 4 8 6 . Parts Rejected 5 | . . . . . . . . 1 . . . . . . . 1 1 . . . . . . . . . 1 . 1 . Parts Fused 4 | . . . . . . . . 1 . . . . . . . . . . 1 . 1 . . . . . . 1 . . Data Loss (minor) 48 | . . . . . . 7 2 4 1 . . . 5 4 . . 2 3 2 . 1 . . 2 . 4 4 3 4 . Data Loss (major) 20 | . . . . . . 3 2 1 . . . 1 1 1 . . . . . . 1 . 1 1 . . 1 6 1 . Misfires 18 | . . . . . . 7 . . . . . . 2 . . . 1 1 . . . . . 1 . 1 1 2 2 . Alerts 9 | . . . . . . 1 . . . . . . 1 1 . . . . . . . . . . . . 1 2 3 . Misdirections 1 | . . . . . . . . . . . . . . . . . . . . . . . . . . . . 1 . . Weapon Failures 18 | . . . . . . 2 . 2 . . . . 1 . . . . . . . . . . . . 1 1 2 9 . Overload Shots . | . . . . . . . . . . . . . . . . . . . . . . . . . . . . . . . Overflow Damage 3035 | . . . . . 16 106 . . . 146 31 216 174 65 214 11 237 38 75 . 82 83 116 . 132 39 357 182 380 335 Projectiles 2621 | . . . . . 16 98 . . . 23 31 216 153 65 214 11 237 38 38 . 82 83 116 . 37 39 357 182 267 318 Explosions 319 | . . . . . . 8 . . . 123 . . 21 . . . . . 37 . . . . . . . . . 113 17 Melee 95 | . . . . . . . . . . . . . . . . . . . . . . . . . 95 . . . . . Knockbacks 33 | . . . . . 1 9 . 1 . . 3 13 5 . . . . . . . . . . . . . . . . 1 Impact 3 | . . . . . 1 . . . . . . 1 . . . . . . . . . . . . . . . . . 1 Kinetic 28 | . . . . . . 8 . 1 . . 3 11 5 . . . . . . . . . . . . . . . . . Secondary 2 | . . . . . . 1 . . . . . 1 . . . . . . . . . . . . . . . . . . Self-Inflicted Damage 409 | . . . . . . 84 . . . 30 . . 3 . . . . . 44 . . . . . . . 20 . . 228 Shots 18 | . . . . . . 1 . . . 1 . . 1 . . . . . 1 . . . . . . . 2 . . 12 Rammed 23 | . . 2 . 2 7 12 . . . . . . . . . . . . . . . . . . . . . . . . Targets Rammed 49 | . . 2 . 2 9 13 . . . . . 5 1 . . 1 1 . . . . . . . 5 1 5 . 2 2 Kicked 23 | . . . . . . . . . . . . 5 1 . . 1 1 . . . . . . . 5 1 5 . 2 2 Crushed 3 | . . . . . 2 1 . . . . . . . . . . . . . . . . . . . . . . . . Highest Temperature 544 | . 5 13 . 18 175 544 . 182 . 288 48 27 231 247 220 30 211 267 230 . 204 39 128 . 108 254 310 251 207 233 Average Temperature 76 | . 2 9 . 9 38 81 . 60 . 108 26 14 89 125 27 4 83 99 61 . 72 16 32 . 38 61 54 61 23 172 Received Heat Transfer 5256 | . 72 110 . 75 918 678 . 81 . 320 459 675 235 . . 171 110 7 68 . 9 90 113 . 99 . 451 199 163 153 Thermoelectric Energy+ 3670 | . . . . . . . . . . . . . . . . . . . . . . . . . . . . . . 3670 Effects 12 | . . . . . . 4 . . . . . . . . . . . . 3 . . . . . . . . . . 5 Shutdowns 1 | . . . . . . 1 . . . . . . . . . . . . . . . . . . . . . . . . Energy Bleed 2 | . . . . . . . . . . . . . . . . . . . . . . . . . . . . . . 2 Interference 6 | . . . . . . . . . . . . . . . . . . . 3 . . . . . . . . . . 3 Damage (major) 3 | . . . . . . 3 . . . . . . . . . . . . . . . . . . . . . . . . Siege Activations . | . . . . . . . . . . . . . . . . . . . . . . . . . . . . . . . Martial Activations . | . . . . . . . . . . . . . . . . . . . . . . . . . . . . . . . Shielding Activations 6 | . . . . . . . . . . . . . . . . . . . . . . . . . . . . 1 2 3 Total Turns 100 | . . . . . . . . . . . . . . . . . . . . . . . . . . . . 14 31 55 Longest Duration 41 | . . . . . . . . . . . . . . . . . . . . . . . . . . . . 14 20 41 Robots Disrupted 1 | . . . . . . . . . . . . . . . . . . . . . . . . . . . 1 . . . Combat Hostiles 1 | . . . . . . . . . . . . . . . . . . . . . . . . . . . 1 . . . Robots Corrupted 15 | . . . . . . . . . . 3 . . . . . . 1 . . . . . . . 1 . 3 . . 7 Combat Hostiles 13 | . . . . . . . . . . 3 . . . . . . . . . . . . . . . . 3 . . 7 Parts Fried 22 | . . . . . . . . . . . . . . . . . 1 . . . . 1 . . 7 . 5 . . 8 Impact Corruptions 6 | . . . . . . . . . . . . . . . . . 1 . . . . . . . 4 1 . . . . Robots Melted 19 | . . . . . 1 1 . . . . 2 . . . . . . . . . . . 3 . 1 1 2 2 . 6 Combat Hostiles 17 | . . . . . 1 1 . . . . 2 . . . . . . . . . . . 3 . . 1 2 2 . 5 Parts Melted 120 | . . . . . 6 15 . 2 . . 3 . 4 . 1 . 3 2 . . 1 5 10 . 2 7 23 6 8 22 Heat Transferred 56723 | . 222 444 . 425 5628 8145 . 400 . 299 2160 1923 2050 722 675 437 1355 224 1280 . 522 1218 3788 . 828 1724 5434 3324 4799 8697 Parts Sabotaged 5 | . . . . . . . . . . . . . . . . . . . . . . . 5 . . . . . . . Parts Stolen . | . . . . . . . . . . . . . . . . . . . . . . . . . . . . . . . Parts Stripped . | . . . . . . . . . . . . . . . . . . . . . . . . . . . . . . . Power Chain Reactions 4 | . . . . . . . . . . 1 . . . . . . . . . . . . . . . . . . . 3 Alert | -11 -10 -10 -10 -9 -8 -7 -7 -7 -7 -7 -6 -6 -6 -6 -6 -6 -5 -5 -5 -5 -4 -4 -4 -4 -3 -3 -2 -2 -2 -1 ------- Run | Yrd Mat Min Exi Min Mat Fac Low Low Zio Dee Pro Fac Ext Cet Arc Hub Fac Upp Upp Zhi Pro Fac Arm Lab Res Qua Res Tes Sec Acc Maximum Alert Level 5 | . . . . . 2 3 . . . . . 3 2 1 1 1 . . . . . . 2 . . . 3 3 4 5 Low Security (%) 44 | . 100 100 . 100 43 25 . . . . . . 44 10 92 50 100 . . . . 100 44 . 100 100 22 . . . Level 1 13 | . . . . . 25 1 . . . . . 3 42 89 7 49 . . . . . . 22 . . . 23 2 . . Level 2 16 | . . . . . 30 20 . . . . . 65 12 . . . . . . . . . 32 . . . 37 25 6 12 Level 3 22 | . . . . . . 52 . . . . . 31 . . . . . . . . . . . . . . 16 71 47 57 Level 4 3 | . . . . . . . . . . . . . . . . . . . . . . . . . . . . . 46 21 Level 5 . | . . . . . . . . . . . . . . . . . . . . . . . . . . . . . . 8 High Security . | . . . . . . . . . . . . . . . . . . . . . . . . . . . . . . . Max Security . | . . . . . . . . . . . . . . . . . . . . . . . . . . . . . . . Peak Influence 1925 | . 60 42 . 80 447 1096 . . . . . 842 447 344 224 327 157 . . . . 175 585 . 48 132 869 937 1561 1925 Initial 931 | . . 7 . . 13 192 . . . . . 781 403 240 87 . 157 . . . . . 82 . . . . 486 459 931 Average 397 | . 14 2 . 13 258 604 . . . . . 589 238 247 99 185 83 . . . . 20 268 . 9 51 434 732 1101 1005 Influence Increases 17132 | . 80 65 . 230 1147 2034 . 120 . . 310 1517 1031 396 270 842 463 170 140 . 120 372 1136 . 219 577 1387 1065 1587 1854 Destroy 0b10 Robot/C 8700 | . 60 60 . 200 760 1180 . 100 . . 260 340 620 220 80 220 220 160 120 . 100 200 620 . 40 220 760 480 740 940 Destroy 0b10 Robot/NC 680 | . . 5 . . 80 105 . . . . 10 25 90 10 35 30 10 . . . . 5 20 . 40 20 60 20 60 55 Destroy Leader 1866 | . 20 . . 30 182 298 . 20 . . 40 80 94 10 . 76 62 10 20 . 20 50 166 . 12 44 194 40 154 244 Allied During Kill 632 | . . . . . . . . . . . . . 102 135 115 278 . . . . . . 2 . . . . . . . Successful Hack 394 | . . . . . 21 2 . . . . . . 27 . . . 60 . . . . 40 16 . 67 49 52 36 . 24 Select Force Hacks 100 | . . . . . . . . . . . . . . . . 100 . . . . . . . . . . . . . . Disable Machine 1545 | . . . . . 30 255 . . . . . 210 30 . 30 75 30 . . . . 15 210 . . 120 90 90 255 105 Anti-Garrison Action 300 | . . . . . . . . . . . . . . . . . . . . . . . . . . . . 150 . 150 Destroy Structure 1775 | . . . . . 29 74 . . . . . 67 53 21 10 33 66 . . . . 62 102 . 60 124 216 219 348 291 Advance Influence 750 | . . . . . . . . . . . . 750 . . . . . . . . . . . . . . . . . . Partial Spotted 15 | . . . . . . . . . . . . . . . . . . . . . . . . . . . . . 15 . Lose Combat Pursuer 375 | . . . . . 45 120 . . . . . 45 15 . . 30 15 . . . . . . . . . 15 30 15 45 Influence Decreases 15257 | . 60 65 20 194 759 1362 576 409 231 . 260 743 1426 607 488 520 695 238 162 . 120 203 727 578 219 577 521 1114 852 1531 Entered New Map 4012 | . . 13 20 . 23 232 406 99 231 . . 19 421 189 131 . 165 34 5 . . . 87 578 . . . 380 358 621 Time Decay 9244 | . 60 42 . 184 656 770 170 310 . . 250 434 575 398 337 440 492 204 157 . 120 203 610 . 219 464 471 574 494 610 Search Patrol Dispatched 200 | . . . . . . . . . . . . 200 . . . . . . . . . . . . . . . . . . Lost Part 520 | . . 10 . 10 80 60 . . . . 10 90 20 . . . . . . . . . 10 . . 20 50 10 . 150 Lost Ally 400 | . . . . . . . . . . . . . 260 20 20 80 . . . . . . 20 . . . . . . . Purge Threat 881 | . . . . . . 300 . . . . . . 150 . . . 38 . . . . . . . . 93 . 150 . 150 Squads Dispatched 123 | . 1 . . . 6 23 . . . . . 6 8 . . 5 3 . . . . 4 5 . 6 5 10 8 11 22 Investigation 13 | . . . . . 2 2 . . . . . 1 1 . . 2 . . . . . . . . 3 1 . . 1 . Extermination 42 | . . . . . . 11 . . . . . 2 . . . 2 2 . . . . 3 3 . . 3 5 4 3 4 Reinforcement 41 | . 1 . . . 3 8 . . . . . 2 7 . . 1 1 . . . . 1 2 . 3 1 4 2 3 2 Assault 19 | . . . . . . 2 . . . . . . . . . . . . . . . . . . . . 1 2 4 10 Garrison 6 | . . . . . 1 . . . . . . 1 . . . . . . . . . . . . . . . . . 4 Intercept 2 | . . . . . . . . . . . . . . . . . . . . . . . . . . . . . . 2 Searches Triggered 2 | . . . . . . . . . . . . 2 . . . . . . . . . . . . . . . . . . Construction Impeded 9 | . . . . . . . . . . . . 2 3 . . . . . . . . 1 . . . . 2 . . 1 Haulers Reinforced 4 | . . . . . . 1 . . . . . . . . . 1 . . . . . . . . 1 . . . . 1 Active Scanning Responses . | . . . . . . . . . . . . . . . . . . . . . . . . . . . . . . . Cargo Convoy Interrupts . | . . . . . . . . . . . . . . . . . . . . . . . . . . . . . . . Stealth | -11 -10 -10 -10 -9 -8 -7 -7 -7 -7 -7 -6 -6 -6 -6 -6 -6 -5 -5 -5 -5 -4 -4 -4 -4 -3 -3 -2 -2 -2 -1 --------- Run | Yrd Mat Min Exi Min Mat Fac Low Low Zio Dee Pro Fac Ext Cet Arc Hub Fac Upp Upp Zhi Pro Fac Arm Lab Res Qua Res Tes Sec Acc Distress Signals 38 | . . 1 . . 4 5 . . . . . . 2 2 . 1 . . . . . 1 4 . 6 . 6 3 2 1 Communications Jammed . | . . . . . . . . . . . . . . . . . . . . . . . . . . . . . . . Distress Signals . | . . . . . . . . . . . . . . . . . . . . . . . . . . . . . . . Times Spotted 667 | . 5 5 . 11 57 98 . 5 . 42 19 25 29 8 13 22 15 5 6 . 5 14 41 . 9 21 55 37 55 65 Peak Tracking Total 37 | . 3 2 . 4 7 6 . 4 . 37 6 7 5 5 1 11 4 5 3 . 2 5 5 . 3 3 7 6 10 15 Tactical Retreats 23 | . . 1 . . 2 5 . . . 2 . 3 1 . . 2 1 . . . . . . . . . 1 2 1 2 Traps | -11 -10 -10 -10 -9 -8 -7 -7 -7 -7 -7 -6 -6 -6 -6 -6 -6 -5 -5 -5 -5 -4 -4 -4 -4 -3 -3 -2 -2 -2 -1 ------- Run | Yrd Mat Min Exi Min Mat Fac Low Low Zio Dee Pro Fac Ext Cet Arc Hub Fac Upp Upp Zhi Pro Fac Arm Lab Res Qua Res Tes Sec Acc Traps Triggered 17 | . . . . . . 3 . . . . . 2 6 . . . 1 . . . . 2 1 . 1 . . . . 1 Indirectly . | . . . . . . . . . . . . . . . . . . . . . . . . . . . . . . . Trap Hack Attempts . | . . . . . . . . . . . . . . . . . . . . . . . . . . . . . . . Triggered . | . . . . . . . . . . . . . . . . . . . . . . . . . . . . . . . Disarmed 6 | . . . . . . . . . . . . . . . . . . . . . . . . . . 6 . . . . Reprogrammed . | . . . . . . . . . . . . . . . . . . . . . . . . . . . . . . . Reused . | . . . . . . . . . . . . . . . . . . . . . . . . . . . . . . . Traps Extracted . | . . . . . . . . . . . . . . . . . . . . . . . . . . . . . . . Installed . | . . . . . . . . . . . . . . . . . . . . . . . . . . . . . . . Triggered . | . . . . . . . . . . . . . . . . . . . . . . . . . . . . . . . Machines | -11 -10 -10 -10 -9 -8 -7 -7 -7 -7 -7 -6 -6 -6 -6 -6 -6 -5 -5 -5 -5 -4 -4 -4 -4 -3 -3 -2 -2 -2 -1 ---------- Run | Yrd Mat Min Exi Min Mat Fac Low Low Zio Dee Pro Fac Ext Cet Arc Hub Fac Upp Upp Zhi Pro Fac Arm Lab Res Qua Res Tes Sec Acc Machines Disabled 119 | . . . . . 2 17 . . 3 3 . 14 4 . 2 5 2 . . . . 3 14 2 . 10 6 7 17 8 Max in Single Turn 5 | . . . . . 1 2 . . 1 1 . 5 1 . 1 1 1 . . . . 1 2 1 . 1 2 2 1 1 Garrison Access 4 | . . . . . . 1 . . . . . . . . . . . . . . . . . . . 1 . 1 . 1 Network Hub 2 | . . . . . . . . . . . . . . . . 2 . . . . . . . . . . . . . . Machines Repaired . | . . . . . . . . . . . . . . . . . . . . . . . . . . . . . . . Machines Dismantled 3 | . . . . . . . . . 3 . . . . . . . . . . . . . . . . . . . . . Machines Sabotaged 2 | . . . . . . . . . . . . . . . . 2 . . . . . . . . . . . . . . Overloaded Fab Kills . | . . . . . . . . . . . . . . . . . . . . . . . . . . . . . . . Hacking | -11 -10 -10 -10 -9 -8 -7 -7 -7 -7 -7 -6 -6 -6 -6 -6 -6 -5 -5 -5 -5 -4 -4 -4 -4 -3 -3 -2 -2 -2 -1 --------- Run | Yrd Mat Min Exi Min Mat Fac Low Low Zio Dee Pro Fac Ext Cet Arc Hub Fac Upp Upp Zhi Pro Fac Arm Lab Res Qua Res Tes Sec Acc Machines Accessed 80 | . . . 1 . 6 9 . 1 . . . 4 10 . . 3 5 . 1 3 . 2 3 . 6 7 3 4 5 7 Terminals 50 | . . . . . 4 4 . . . . . 1 10 . . 3 5 . . . . 1 2 . 5 3 1 3 3 5 Fabricators 4 | . . . . . . 1 . . . . . 1 . . . . . . . . . . 1 . . . 1 . . . Repair Stations 1 | . . . . . . 1 . . . . . . . . . . . . . . . . . . . . . . . . Recycling Units 1 | . . . . . . . . . . . . 1 . . . . . . . . . . . . . . . . . . Scanalyzers 11 | . . . . . 2 1 . . . . . 1 . . . . . . . . . . . . 1 3 1 1 1 . Garrison Access 7 | . . . . . . 2 . . . . . . . . . . . . . . . 1 . . . 1 . . 1 2 Total Hacks 248 | . . . 1 . 15 20 . 1 . . . 10 20 . . 4 16 . 1 13 . 9 9 . 18 33 18 15 18 27 Successful 97 | . . . 1 . 7 8 . 1 . . . 2 9 . . 2 8 . 1 13 . 4 2 . 5 17 7 5 2 3 Failed 148 | . . . . . 8 11 . . . . . 8 11 . . 2 8 . . . . 5 7 . 13 15 11 9 16 24 Catastrophic 43 | . . . . . 2 3 . . . . . 3 3 . . . 2 . . . . 1 1 . 3 5 5 1 4 10 Database Lockouts 3 | . . . . . . 1 . . . . . . . . . . . . . . . . . . . 1 . 1 . . Manual 68 | . . . . . 8 5 . . . . . 1 9 1 . 4 9 . . . . . 3 . 6 11 3 1 3 4 Terminals 151 | . . . . . 8 8 . . . . . 1 20 . . 4 16 . . . . 8 8 . 13 18 3 7 14 23 Fabricators 12 | . . . . . . 3 . . . . . 3 . . . . . . . . . . 1 . . . 5 . . . Repair Stations 2 | . . . . . . 2 . . . . . . . . . . . . . . . . . . . . . . . . Recycling Units 4 | . . . . . . . . . . . . 4 . . . . . . . . . . . . . . . . . . Scanalyzers 49 | . . . . . 7 2 . . . . . 2 . . . . . . . . . . . . 5 14 10 8 1 . Garrison Access 14 | . . . . . . 5 . . . . . . . . . . . . . . . 1 . . . 1 . . 3 4 Terminal Hacks 55 | . . . 1 . 1 2 . 1 . . . . 8 . . . 7 . 1 13 . 4 1 . 4 6 . 3 1 2 Record 8 | . . . 1 . . . . . . . . . . . . . . . . 5 . 1 . . . 1 . . . . Part Schematic 2 | . . . . . 1 . . . . . . . . . . . . . . . . . . . 1 . . . . . Robot Analysis 4 | . . . . . . . . . . . . . . . . . . . . 4 . . . . . . . . . . Prototype ID Bank 4 | . . . . . . . . . . . . . . . . . . . . 4 . . . . . . . . . . Open Door 6 | . . . . . . . . 1 . . . . 4 . . . . . 1 . . . . . . . . . . . Level Access Points 1 | . . . . . . . . . . . . . . . . . . . . . . . . . 1 . . . . . Branch Access Points 1 | . . . . . . . . . . . . . . . . . 1 . . . . . . . . . . . . . Emergency Access Points 1 | . . . . . . . . . . . . . . . . . . . . . . 1 . . . . . . . . Machine Index 1 | . . . . . . . . . . . . . . . . . 1 . . . . . . . . . . . . . Scanalyzer Index 1 | . . . . . . . . . . . . . . . . . . . . . . . . . . 1 . . . . Alert Level 6 | . . . . . . . . . . . . . 1 . . . 1 . . . . 1 . . . . . 1 1 1 Unreport Threat 9 | . . . . . . 2 . . . . . . 1 . . . 2 . . . . . . . . 2 . 1 . 1 Locate Traps 3 | . . . . . . . . . . . . . 1 . . . . . . . . . 1 . 1 . . . . . Disarm Traps 2 | . . . . . . . . . . . . . . . . . . . . . . . . . . 2 . . . . Recall Reinforcements 1 | . . . . . . . . . . . . . 1 . . . . . . . . . . . . . . . . . Hauler Manifests 1 | . . . . . . . . . . . . . . . . . . . . . . . . . 1 . . . . . Zone Layout 3 | . . . . . . . . . . . . . . . . . 2 . . . . 1 . . . . . . . . Protovariant Controls 1 | . . . . . . . . . . . . . . . . . . . . . . . . . . . . 1 . . Fabricator Hacks 5 | . . . . . . 2 . . . . . 1 . . . . . . . . . . . . . . 2 . . . Load Schematic 3 | . . . . . . 1 . . . . . 1 . . . . . . . . . . . . . . 1 . . . Build 2 | . . . . . . 1 . . . . . . . . . . . . . . . . . . . . 1 . . . Repair Station Hacks 2 | . . . . . . 2 . . . . . . . . . . . . . . . . . . . . . . . . Scan Component 1 | . . . . . . 1 . . . . . . . . . . . . . . . . . . . . . . . . Repair 1 | . . . . . . 1 . . . . . . . . . . . . . . . . . . . . . . . . Recycling Unit Hacks 1 | . . . . . . . . . . . . 1 . . . . . . . . . . . . . . . . . . Retrieve Components 1 | . . . . . . . . . . . . 1 . . . . . . . . . . . . . . . . . . Scanalyzer 22 | . . . . . 6 1 . . . . . . . . . . . . . . . . . . 1 7 4 2 1 . Insert Component 7 | . . . . . . . . . . . . . . . . . . . . . . . . . . 6 . . 1 . Retrieve Study 15 | . . . . . 6 1 . . . . . . . . . . . . . . . . . . 1 1 4 2 . . Garrison Access Hacks 2 | . . . . . . 1 . . . . . . . . . . . . . . . . . . . 1 . . . . Seal Access 2 | . . . . . . 1 . . . . . . . . . . . . . . . . . . . 1 . . . . Unauthorized Hacks 10 | . . . . . . . . . . . . . 1 . . 2 1 . . . . . 1 . . 3 1 . . 1 Terminals 8 | . . . . . . . . . . . . . 1 . . 2 1 . . . . . . . . 3 . . . 1 Assimilate 1 | . . . . . . . . . . . . . . . . . . . . . . . . . . 1 . . . . Botnet 5 | . . . . . . . . . . . . . 1 . . . 1 . . . . . . . . 2 . . . 1 Sabotage 2 | . . . . . . . . . . . . . . . . 2 . . . . . . . . . . . . . . Fabricators 2 | . . . . . . . . . . . . . . . . . . . . . . . 1 . . . 1 . . . Prioritize 1 | . . . . . . . . . . . . . . . . . . . . . . . . . . . 1 . . . Liberate 1 | . . . . . . . . . . . . . . . . . . . . . . . 1 . . . . . . . Repair Stations . | . . . . . . . . . . . . . . . . . . . . . . . . . . . . . . . Recycling Units . | . . . . . . . . . . . . . . . . . . . . . . . . . . . . . . . Scanalyzers . | . . . . . . . . . . . . . . . . . . . . . . . . . . . . . . . Garrison Access . | . . . . . . . . . . . . . . . . . . . . . . . . . . . . . . . Data Cores Recovered 2 | . . . . . . . . . . . . . . . . . . . . . . . . . 1 . . 1 . . Used 1 | . . . . . . . . . . . . . . . . . . . . . . . . . 1 . . . . . Hacking Detections 62 | . . . . . 6 6 . . . . . 4 8 1 . 1 5 . . . . 2 2 . 5 5 3 3 4 7 Full Trace Events 7 | . . . . . 2 1 . . . . . 1 . . . . . . . . . . . . 1 1 . . 1 . Feedback Events . | . . . . . . . . . . . . . . . . . . . . . . . . . . . . . . . Feedback Blocked . | . . . . . . . . . . . . . . . . . . . . . . . . . . . . . . . Robot Schematics Acquired 5 | . . . . . . . . . 4 . . . . . . . . . . . . . . . . . . . 1 . Robots Built . | . . . . . . . . . . . . . . . . . . . . . . . . . . . . . . . Authchips . | . . . . . . . . . . . . . . . . . . . . . . . . . . . . . . . Time . | . . . . . . . . . . . . . . . . . . . . . . . . . . . . . . . Total Robot Build Rating . | . . . . . . . . . . . . . . . . . . . . . . . . . . . . . . . Part Schematics Acquired 19 | . . . . . 1 . . . 13 . . . . . . . . . . . . . . . 1 . . . 4 . Parts Built 4 | . . . . . . 2 . . . . . . . . . . . . . . . . . . . . 2 . . . Authchips 1 | . . . . . . . . . . . . . . . . . . . . . . . . . . . 1 . . . Time 120 | . . . . . . 62 . . . . . . . . . . . . . . . . . . . . 58 . . . Total Part Build Rating 18 | . . . . . . 4 . . . . . . . . . . . . . . . . . . . . 14 . . . Part Studies Acquired 15 | . . . . . 6 1 . . . . . . . . . . . . . . . . . . 1 1 4 2 . . Parts Repaired . | . . . . . . . . . . . . . . . . . . . . . . . . . . . . . . . Time 60 | . . . . . . 60 . . . . . . . . . . . . . . . . . . . . . . . . Parts Recycled . | . . . . . . . . . . . . . . . . . . . . . . . . . . . . . . . Recycled Matter . | . . . . . . . . . . . . . . . . . . . . . . . . . . . . . . . Retrieved Matter . | . . . . . . . . . . . . . . . . . . . . . . . . . . . . . . . Retrieved Components . | . . . . . . . . . . . . . . . . . . . . . . . . . . . . . . . Parts Scanalyzed . | . . . . . . . . . . . . . . . . . . . . . . . . . . . . . . . Part Schematics Acquired . | . . . . . . . . . . . . . . . . . . . . . . . . . . . . . . . Parts Damaged . | . . . . . . . . . . . . . . . . . . . . . . . . . . . . . . . Bothacking | -11 -10 -10 -10 -9 -8 -7 -7 -7 -7 -7 -6 -6 -6 -6 -6 -6 -5 -5 -5 -5 -4 -4 -4 -4 -3 -3 -2 -2 -2 -1 ------------ Run | Yrd Mat Min Exi Min Mat Fac Low Low Zio Dee Pro Fac Ext Cet Arc Hub Fac Upp Upp Zhi Pro Fac Arm Lab Res Qua Res Tes Sec Acc Used RIF Installer . | . . . . . . . . . . . . . . . . . . . . . . . . . . . . . . . Robots Hacked . | . . . . . . . . . . . . . . . . . . . . . . . . . . . . . . . Non-combat . | . . . . . . . . . . . . . . . . . . . . . . . . . . . . . . . Combat . | . . . . . . . . . . . . . . . . . . . . . . . . . . . . . . . Robot Hacks Applied . | . . . . . . . . . . . . . . . . . . . . . . . . . . . . . . . Relay Couplers Released 9 | . . . . . . . . . . . . . . . . . . . . . . . . . . . 3 3 . 3 Machine Destruction 6 | . . . . . . . . . . . . . . . . . . . . . . . . . . . . 3 . 3 Programmers 3 | . . . . . . . . . . . . . . . . . . . . . . . . . . . 3 . . . Fabnet Peak Effective % . | . . . . . . . . . . . . . . . . . . . . . . . . . . . . . . . Robots Rewired 13 | . . . . . . . . . . . . . 11 . . . . . . . . . 2 . . . . . . . Allies Hacked 1 | . . . . . . . . . . . . . . . . . . . . . . . 1 . . . . . . . Hacks Repelled . | . . . . . . . . . . . . . . . . . . . . . . . . . . . . . . . Allies | -11 -10 -10 -10 -9 -8 -7 -7 -7 -7 -7 -6 -6 -6 -6 -6 -6 -5 -5 -5 -5 -4 -4 -4 -4 -3 -3 -2 -2 -2 -1 -------- Run | Yrd Mat Min Exi Min Mat Fac Low Low Zio Dee Pro Fac Ext Cet Arc Hub Fac Upp Upp Zhi Pro Fac Arm Lab Res Qua Res Tes Sec Acc Total Allies 24 | . . . . . . . . . . . . . 17 5 . . . . . . . . 2 . . . . . . . Largest Group 8 | . . . . . . . . . . . . . 6 8 7 6 . . . . . . 2 . . . . . . . Highest-Rated Group 691 | . . . . . . . . . . . . . 249 691 539 519 . . . . . . 128 . . . . . . . Highest-Rated Ally 159 | . . . . . . . . . . . . . 159 159 96 96 . . . . . . 64 . . . . . . . Total Orders 11 | . . . . . . . . . . . . . . 2 . 5 . . . . . . 4 . . . . . . . STAY 6 | . . . . . . . . . . . . . . 1 . 3 . . . . . . 2 . . . . . . . FOLLOW 4 | . . . . . . . . . . . . . . 1 . 2 . . . . . . 1 . . . . . . . GUARD 1 | . . . . . . . . . . . . . . . . . . . . . . . 1 . . . . . . . Ally Attacks 227 | . . . . . . . . . . . . . 91 59 13 64 . . . . . . . . . . . . . . Total Damage 5481 | . . . . . . . . . . . . . 1640 1675 364 1802 . . . . . . . . . . . . . . Kills 35 | . . . . . . . . . . . . . 10 9 4 12 . . . . . . . . . . . . . . Allies Corrupted 3 | . . . . . . . . . . . . . . . . 3 . . . . . . . . . . . . . . Allies Melted . | . . . . . . . . . . . . . . . . . . . . . . . . . . . . . . . Intel | -11 -10 -10 -10 -9 -8 -7 -7 -7 -7 -7 -6 -6 -6 -6 -6 -6 -5 -5 -5 -5 -4 -4 -4 -4 -3 -3 -2 -2 -2 -1 ------- Run | Yrd Mat Min Exi Min Mat Fac Low Low Zio Dee Pro Fac Ext Cet Arc Hub Fac Upp Upp Zhi Pro Fac Arm Lab Res Qua Res Tes Sec Acc Active Infowar (turns) 33515 | . . . . . 1054 5976 354 627 2334 616 316 691 843 . 525 1026 1375 1278 896 363 969 963 1984 1811 930 1710 1851 1741 1290 1992 Optics 14885 | . . . . . . 780 . . . . . . . . . . . . . . . 808 1984 1811 930 1710 1851 1729 1290 1992 Sensors 28187 | . . . . . . 5976 354 627 2334 616 316 691 843 . 525 1026 1375 1278 896 363 969 893 1925 94 925 1621 1411 829 991 1309 Terrain 1054 | . . . . . 1054 . . . . . . . . . . . . . . . . . . . . . . . . . Cloaking 272 | . . . . . . . . . . . . . . . . . . . . . . . 272 . . . . . . . Robot Analysis Total 4 | . . . . . . . . . . . . . . . . . . . . 4 . . . . . . . . . . Derelict Logs Recovered 12 | . . 2 . 1 . . 1 1 2 . 2 . . . . . . 1 1 . 1 . . . . . . . . . Drone Launches . | . . . . . . . . . . . . . . . . . . . . . . . . . . . . . . . Drone Recoveries . | . . . . . . . . . . . . . . . . . . . . . . . . . . . . . . . Exploration | -11 -10 -10 -10 -9 -8 -7 -7 -7 -7 -7 -6 -6 -6 -6 -6 -6 -5 -5 -5 -5 -4 -4 -4 -4 -3 -3 -2 -2 -2 -1 ------------- Run | Yrd Mat Min Exi Min Mat Fac Low Low Zio Dee Pro Fac Ext Cet Arc Hub Fac Upp Upp Zhi Pro Fac Arm Lab Res Qua Res Tes Sec Acc Turns Passed 45646 | . 319 814 291 1165 3056 6490 359 687 2334 3263 1246 1068 1926 944 844 1196 1548 1329 1122 369 969 963 1984 1811 930 1710 1851 1741 1304 2013 Spaces Moved 16768 | 1 175 289 162 411 1114 2335 147 270 933 1202 389 351 792 278 146 378 529 438 481 137 340 447 773 335 453 769 779 603 488 823 Core 3 | . . . . . . . . . . 3 . . . . . . . . . . . . . . . . . . . . Treads 6232 | . 163 289 162 411 1114 2195 147 270 933 548 . . . . . . . . . . . . . . . . . . . . Legs 10531 | 1 12 . . . . 140 . . . 651 389 351 792 278 146 378 529 438 481 137 340 447 773 335 453 769 779 603 488 821 Wheels . | . . . . . . . . . . . . . . . . . . . . . . . . . . . . . . . Hover . | . . . . . . . . . . . . . . . . . . . . . . . . . . . . . . . Flight . | . . . . . . . . . . . . . . . . . . . . . . . . . . . . . . . Fastest Speed 120 | 120 120 160 160 240 200 195 240 240 240 150 180 180 180 180 210 180 180 210 210 180 210 183 183 140 183 183 180 174 181 173 Average Speed 204 | 120 157 160 179 240 230 239 240 240 240 211 180 198 185 207 210 208 208 210 210 180 210 183 183 154 183 184 184 179 181 176 Slowest Speed 1450 | 120 160 160 240 240 240 272 240 240 240 1450 180 210 240 210 210 270 210 210 210 210 210 183 183 183 183 226 187 184 181 227 Overloaded Moves . | . . . . . . . . . . . . . . . . . . . . . . . . . . . . . . . Propulsion Burnouts . | . . . . . . . . . . . . . . . . . . . . . . . . . . . . . . . Robots Hopped . | . . . . . . . . . . . . . . . . . . . . . . . . . . . . . . . Potential Cave-ins 6 | . . . . . . . . . . . . . . . . . . . . . . 3 . . . . . 3 . . Cave-ins Triggered . | . . . . . . . . . . . . . . . . . . . . . . . . . . . . . . . Teleports 4 | . . . . . . . . . . . . . . . . . . . . . . . 1 . . . 1 . 2 . Spacefolds 1 | . . . . . . . . . . . . . . . . . . . . . . . . . . . . . . 1 Exploration Rate (%) 50 | 2 33 49 49 47 81 59 29 47 84 82 57 11 82 57 76 35 16 57 59 60 46 22 45 95 17 84 35 73 38 25 Regions Visited 30 Branch Regions 21 Pre-discovered Areas 5 | . . . 1 1 . . . . . . . . . . . . . . . 3 . . . . . . . . . . Known Exits Taken 24 | . . . . . . 1 1 1 1 1 1 1 1 1 1 1 1 1 1 1 1 1 1 1 1 1 1 1 1 . Unknown Exits Taken 6 | 1 1 1 1 1 1 . . . . . . . . . . . . . . . . . . . . . . . . . Scrap Searched 12 | . . 1 . 1 . . 2 2 3 . . . . . . . . 1 1 . 1 . . . . . . . . . Spaces Dug 195 | . . . . . 2 9 . . . 3 . 10 . . . 8 14 1 . . 4 21 19 . 7 28 17 19 16 17 Terrain Destroyed 1134 | . . . . . 20 66 . 3 . 71 26 92 73 11 10 18 33 26 38 . 9 36 60 . 30 89 76 95 129 123 Melee 3 | . . . . . . 3 . . . . . . . . . . . . . . . . . . . . . . . . Projectile 788 | . . . . . 20 25 . 3 . 9 26 42 24 9 10 18 33 7 11 . 9 36 60 . 30 89 76 75 75 101 AOE 341 | . . . . . . 38 . . . 62 . 50 49 . . . . 19 27 . . . . . . . . 20 54 22 Terrain Rammed . | . . . . . . . . . . . . . . . . . . . . . . . . . . . . . . . Walls Destroyed . | . . . . . . . . . . . . . . . . . . . . . . . . . . . . . . . Machines Disabled . | . . . . . . . . . . . . . . . . . . . . . . . . . . . . . . . Actions | -11 -10 -10 -10 -9 -8 -7 -7 -7 -7 -7 -6 -6 -6 -6 -6 -6 -5 -5 -5 -5 -4 -4 -4 -4 -3 -3 -2 -2 -2 -1 --------- Run | Yrd Mat Min Exi Min Mat Fac Low Low Zio Dee Pro Fac Ext Cet Arc Hub Fac Upp Upp Zhi Pro Fac Arm Lab Res Qua Res Tes Sec Acc Total 25504 | . 209 608 164 547 1385 2908 153 290 973 1848 849 598 1120 554 655 750 897 834 548 262 574 529 1171 1627 507 929 1018 1124 713 1160 Wait 5811 | . 6 295 . 98 47 216 . . . 469 403 143 19 162 471 336 291 373 35 110 219 12 193 1228 2 23 67 373 60 160 Move 16736 | . 174 288 161 410 1113 2334 146 269 932 1201 388 350 791 277 145 377 528 437 480 136 339 446 772 334 452 768 778 602 487 821 Hop . | . . . . . . . . . . . . . . . . . . . . . . . . . . . . . . . Pick Up 258 | . 7 1 1 9 38 37 . 1 1 27 1 8 16 9 5 1 9 1 1 2 1 2 12 14 7 10 13 5 9 10 Fast Attach 158 | . 1 2 . 1 11 24 2 4 3 12 1 5 2 3 3 1 . 1 . 4 . 6 16 5 1 9 12 12 13 4 Attach 76 | . . . . 2 10 9 . . . 11 1 1 2 . . . 1 . . 1 . 1 2 9 3 2 7 2 5 7 Detach 126 | . . . . 1 1 5 . . . 15 5 10 7 6 7 4 6 6 2 5 1 5 4 6 2 1 8 10 2 7 Swap 257 | . 6 1 1 2 10 34 3 4 4 23 6 2 10 3 2 10 13 7 7 . 1 5 7 . 5 4 16 18 25 28 Drop 323 | . 8 2 1 1 39 60 2 4 5 28 2 2 13 11 7 1 3 1 1 4 . 7 21 18 4 16 23 19 15 5 Fire 1424 | . 7 17 . 21 107 170 . 8 1 48 42 67 70 83 15 19 45 8 22 . 13 45 104 13 26 95 89 83 95 111 Melee 14 | . . . . . . 3 . . . 11 . . . . . . . . . . . . . . . . . . . . Ram . | . . . . . . . . . . . . . . . . . . . . . . . . . . . . . . . Kick 23 | . . . . . . . . . . . . 5 1 . . 1 1 . . . . . . . 5 1 5 . 2 2 Crush 26 | . . 2 . 2 9 13 . . . . . . . . . . . . . . . . . . . . . . . . Escape Stasis 42 | . . . . . . 2 . . . . . 5 30 . . . . . . . . . . . . . . . . 5 Rewire 203 | . . . . . . 1 . . . 3 . . 159 . . . . . . . . . 40 . . . . . . . Trap . | . . . . . . . . . . . . . . . . . . . . . . . . . . . . . . . Miscellaneous 27 | . . . . . . . . . 27 . . . . . . . . . . . . . . . . . . . . . Route ------- -11/Scrapyard -10/Materials -10/Mines (discovered 2 exits: [*Mat] / *Exi) -10/Exiles -9/Mines -8/Materials (discovered 3 exits: *Fac x2 / *Sto) -7/Factory (discovered 4 exits: *Fac x3 / *Low) -7/Lower Caves -7/Lower Caves -7/Zion (discovered 2 exits: *Dee / [*Pro]) -7/Deep Caves -6/Proximity Caves -6/Factory (discovered 2 exits: *Ext x2) -6/Extension (discovered 2 exits: *Fac / *Cet) -6/Cetus (discovered 2 exits: *Fac / *Arc) -6/Archives (discovered 3 exits: *Fac / *Hub x2) -6/Hub_04(d) -5/Factory (discovered 3 exits: *Fac / *Upp x2) -5/Upper Caves -5/Upper Caves -5/Zhirov -4/Proximity Caves -4/Factory (discovered 3 exits: *Res / [*Upp] / *Arm) -4/Armory (discovered 2 exits: *Res / *Lab) -4/Lab -3/Research (discovered 4 exits: *Res x3 / *Qua) -3/Quarantine -2/Research (discovered 2 exits: *Acc / *Tes) -2/Testing (discovered 3 exits: *Acc / *Sec / [*Frg]) -2/Section 7 -1/Access To Epsilon Eridani History --------- Turn | Location | Event 1 | -11/Scrapyard | Discovered new exit (range 0) 1 | -11/Scrapyard | Entered Materials 267 | -10/Materials | Discovered new exit (range 7) 311 | -10/Materials | Build established: Mutant 320 | -10/Materials | Entered Mines 362 | -10/Mines | Discovered new exit (range 8) 384 | -10/Mines | Met a Derelict bent on vengeance 488 | -10/Mines | Found a Scrap Suit stashed away for nefarious purposes 648 | -10/Mines | Excavation squad dispatched 648 | -10/Mines | A large section of the Mines collapsed 898 | -10/Mines | Excavation squad dispatched 1126 | -10/Mines | Deemed a non-threat by the Exiles lab entrance 1128 | -10/Mines | Discovered new exit (range 5) 1134 | -10/Mines | Entered Exiles 1176 | -10/Exiles | Met 8R-AWN 1202 | -10/Exiles | Met EX-HEX 1264 | -10/Exiles | Met EX-DEC 1274 | -10/Exiles | Learned location of Zion (-7) 1399 | -10/Exiles | Discovered new exit (range 12) 1425 | -10/Exiles | Entered Mines 1520 | -9/Mines | A weapon hastily lodged in a ceiling crevice suddenly fell to the ground 1644 | -9/Mines | Learned location of Recycling (-8) 1868 | -9/Mines | Assembled infested the area 1927 | -9/Mines | Build established: Scavenger-Mutant 2540 | -9/Mines | Discovered new exit (range 15) 2590 | -9/Mines | Entered Materials 2590 | -8/Materials | Evolved 4 slots: Utility x3, Weapon x1 2591 | -8/Materials | Identified exit to Storage 2923 | -8/Materials | Build established: Scavenger-Skirmisher 3263 | -8/Materials | Garrison activated, responded to threat 3374 | -8/Materials | Lost 3 parts (2n1u) 3667 | -8/Materials | Discovered new exit (range 11) 3998 | -8/Materials | Build established: Scavenger-Tank 4384 | -8/Materials | Discovered new exit (range 4) 5646 | -8/Materials | Entered Factory 5646 | -7/Factory | Evolved 2 slots: Utility x2 5894 | -7/Factory | Discovered new exit (range 3) 6228 | -7/Factory | Fabricated Plasma Cutter? 6633 | -7/Factory | Central database locked down 6667 | -7/Factory | Discovered new exit (range 5) 7345 | -7/Factory | Build established: Tank 7646 | -7/Factory | First assault squad dispatched 8559 | -7/Factory | Allied Derelicts emerged from ambush trap array 8662 | -7/Factory | Discovered new exit (range 15) 8756 | -7/Factory | Discovered new exit (range 7) 8880 | -7/Factory | Build established: Hacker-Tank 10488 | -7/Factory | Build established: Tank 10806 | -7/Factory | Identified exit to Factory 11137 | -7/Factory | Build established: Skirmisher 12027 | -7/Factory | Build established: Tank 12133 | -7/Factory | Identified exit to Lower Caves 12136 | -7/Factory | Entered Lower Caves 12137 | -7/Lower Caves | Encountered a Warlord checkpoint 12155 | -7/Lower Caves | Identified exit to Lower Caves 12495 | -7/Lower Caves | Entered another Lower Caves area 13148 | -7/Lower Caves | Discovered new exit (range 14) 13156 | -7/Lower Caves | Learned Factory terminal intel 13177 | -7/Lower Caves | Identified exit to Zion 13182 | -7/Lower Caves | Entered Zion 13268 | -7/Zion | System corruption cleaned by Quarantine Array 13626 | -7/Zion | Discovered new exit (range 16) 14264 | -7/Zion | Given the Hacking Drone Bay 14348 | -7/Zion | Identified exit to Deep Caves 15231 | -7/Zion | Met Imprinter 15510 | -7/Zion | Saw the warning signs outside the Deep Caves entrance 15516 | -7/Zion | Entered Deep Caves 15903 | -7/Deep Caves | Attacked by Z-Imprinter 15915 | -7/Deep Caves | Destroyed Z-Imprinter 16083 | -7/Deep Caves | Z-Facility disabled 16619 | -7/Deep Caves | Build established: Gunner 16817 | -7/Deep Caves | Discovered new exit (range 10) 16838 | -7/Deep Caves | Identified exit to Proximity Caves 16902 | -7/Deep Caves | Spotted Golem 16938 | -7/Deep Caves | Core integrity fell below 50% 16942 | -7/Deep Caves | Destroyed Golem 16971 | -7/Deep Caves | Lost 5 parts (1p3n1u) 16988 | -7/Deep Caves | Found GOLEM Unit 17149 | -7/Deep Caves | Build established: Tank 17626 | -7/Deep Caves | Build established: Golem 17875 | -7/Deep Caves | Found Prototype Protection 17911 | -7/Deep Caves | Identified Zio. Heavy Carapace 18259 | -7/Deep Caves | Spotted Golem 18305 | -7/Deep Caves | Destroyed Golem 18412 | -7/Deep Caves | Triggered Deep Caves wall 18412 | -7/Deep Caves | Spotted Assembler 18412 | -7/Deep Caves | Spotted Assembler 18413 | -7/Deep Caves | Destroyed Assembler 18416 | -7/Deep Caves | Destroyed Assembler 18458 | -7/Deep Caves | Destroyed 35 combat bots 18509 | -7/Deep Caves | Exposed GOLEM chamber 18513 | -7/Deep Caves | Found GOLEM Unit 18517 | -7/Deep Caves | Found GOLEM Unit 18522 | -7/Deep Caves | Found GOLEM Unit 18528 | -7/Deep Caves | Found GOLEM Unit 18779 | -7/Deep Caves | Entered Proximity Caves 18781 | -6/Proximity Caves | Spotter reported a threat 18782 | -6/Proximity Caves | Spotter reported a threat 18804 | -6/Proximity Caves | Spotted B-75 Beast 18823 | -6/Proximity Caves | Destroyed B-75 Beast 18880 | -6/Proximity Caves | Spotter reported a threat 18971 | -6/Proximity Caves | Spotter reported a threat 19133 | -6/Proximity Caves | Spotter reported a threat 19137 | -6/Proximity Caves | Learned 8 Factory zone layouts 19550 | -6/Proximity Caves | Attracted the attention of an 0b10 checkpoint 19764 | -6/Proximity Caves | Core integrity fell below 20% 19792 | -6/Proximity Caves | Learned Factory interactive machine intel 19926 | -6/Proximity Caves | Discovered exit to Factory (range 10) 20025 | -6/Proximity Caves | Entered Factory 20025 | -6/Factory | Evolved 2 slots: Power x1, Utility x1 20026 | -6/Factory | Identified exit to Extension 20028 | -6/Factory | Loaded intel: 55 interactive machine locations 20029 | -6/Factory | Loaded intel: 27 terminal locations 20375 | -6/Factory | Search patrols dispatched 20679 | -6/Factory | Garrison activated, responded to threat 20725 | -6/Factory | Search patrols dispatched 20776 | -6/Factory | Lost 8 parts (1p6u1w) 20951 | -6/Factory | Destroyed 7 combat bots 21093 | -6/Factory | Entered Extension 21707 | -6/Extension | Rescued a captive Derelict 21847 | -6/Extension | Rescued a captive Derelict 21848 | -6/Extension | Rescued a captive Derelict 22071 | -6/Extension | Spotted B-75 Beast 22134 | -6/Extension | Lost 5 allies 22147 | -6/Extension | Destroyed B-75 Beast 22515 | -6/Extension | Lost 4 allies 22860 | -6/Extension | Rescued a captive Derelict 22862 | -6/Extension | Rescued a captive Derelict 22900 | -6/Extension | Rescued A7 22992 | -6/Extension | Discovered new exit (range 10) 22994 | -6/Extension | Discovered new exit (range 6) 23017 | -6/Extension | Identified exit to Cetus 23019 | -6/Extension | Entered Cetus 23019 | -6/Cetus | Accompanied by 4 allies (A7) 23024 | -6/Cetus | Acquired a Cetus Manufacturing Module code from A7 23107 | -6/Cetus | Spotted Cetus Guard 23109 | -6/Cetus | Spotted Cetus Guard 23111 | -6/Cetus | Destroyed Cetus Guard 23120 | -6/Cetus | Allies destroyed Cetus Guard 23256 | -6/Cetus | Started Cetus Manufacturing Module 23281 | -6/Cetus | Manufactured an Enhanced Grunt 23282 | -6/Cetus | Discovered new exit (range 16) 23306 | -6/Cetus | Manufactured an Enhanced Grunt 23331 | -6/Cetus | Manufactured an Enhanced Grunt 23348 | -6/Cetus | Spotted Cetus Guard 23348 | -6/Cetus | Spotted Cetus Guard 23350 | -6/Cetus | Spotted Cetus Guard 23350 | -6/Cetus | Destroyed Cetus Guard 23353 | -6/Cetus | Destroyed Cetus Guard 23354 | -6/Cetus | Spotted Cetus Guard 23356 | -6/Cetus | Manufactured an Enhanced Grunt 23365 | -6/Cetus | Allies destroyed Cetus Guard 23368 | -6/Cetus | Allies destroyed Cetus Guard 23373 | -6/Cetus | Discovered new exit (range 16) 23381 | -6/Cetus | Manufactured an Enhanced Grunt 23383 | -6/Cetus | Met Revision 17 23650 | -6/Cetus | Build established: Commander-Golem 23769 | -6/Cetus | Security sweep announced 23882 | -6/Cetus | Murdered A7 23900 | -6/Cetus | Found Prototype Protection 23900 | -6/Cetus | Identified Med. Regenerative Plating 23903 | -6/Cetus | Extracted ID and sensor layout for unrecognized location from A7's data core 23948 | -6/Cetus | Identified exit to Archives 23963 | -6/Cetus | Entered Archives 23963 | -6/Archives | Accompanied by 7 allies 24023 | -6/Archives | Discovered new exit (range 15) 24052 | -6/Archives | Discovered new exit (range 16) 24419 | -6/Archives | Discovered new exit (range 16) 24794 | -6/Archives | Identified exit to Hub_04(d) 24807 | -6/Archives | Entered Hub_04(d) 24807 | -6/Hub_04(d) | Accompanied by 6 allies 25385 | -6/Hub_04(d) | Discovered new exit (range 12) 25406 | -6/Hub_04(d) | Identified exit to Factory 25862 | -6/Hub_04(d) | Network Hub disabled 25875 | -6/Hub_04(d) | Network Hub disabled 25925 | -6/Hub_04(d) | Spotted Lightning 25933 | -6/Hub_04(d) | Spotted Lightning 25933 | -6/Hub_04(d) | Spotted Lightning 25936 | -6/Hub_04(d) | Spotted Lightning 25939 | -6/Hub_04(d) | Spotted Lightning 25964 | -6/Hub_04(d) | Lost 3 allies 26003 | -6/Hub_04(d) | Entered Factory 26003 | -5/Factory | Evolved 2 slots: Utility x2 26210 | -5/Factory | Build established: Golem 26675 | -5/Factory | Identified exit to Upper Caves 27293 | -5/Factory | Discovered new exit (range 4) 27300 | -5/Factory | Identified exit to Factory 27551 | -5/Factory | Entered Upper Caves 28433 | -5/Upper Caves | Learned Factory machine intel 28550 | -5/Upper Caves | Attracted the attention of an 0b10 checkpoint 28869 | -5/Upper Caves | Discovered new exit (range 5) 28875 | -5/Upper Caves | Identified exit to Upper Caves 28880 | -5/Upper Caves | Entered another Upper Caves area 29199 | -5/Upper Caves | Attracted the attention of an 0b10 checkpoint 29247 | -5/Upper Caves | Learned Factory emergency access door positions 29519 | -5/Upper Caves | Encountered a Warlord checkpoint 29594 | -5/Upper Caves | Spotted B-75 Beast 29685 | -5/Upper Caves | Destroyed B-75 Beast 29990 | -5/Upper Caves | Discovered new exit (range 7) 30000 | -5/Upper Caves | Identified exit to Zhirov 30002 | -5/Upper Caves | Entered Zhirov 30005 | -5/Zhirov | Discovered new exit (range 3) 30043 | -5/Zhirov | Met Zhirov 30073 | -5/Zhirov | Learned location of Quarantine (-3) 30073 | -5/Zhirov | Learned location of Testing (-2) 30073 | -5/Zhirov | Learned location of Command (-1) 30086 | -5/Zhirov | Zhirov requested help retrieving the SGEMP Prototype 30114 | -5/Zhirov | Found Alien Artifact 30114 | -5/Zhirov | Identified Integrated Dissipator 30114 | -5/Zhirov | Installed Integrated Dissipator, increased core heat dissipation (+20) 30136 | -5/Zhirov | Found Alien Artifact 30255 | -5/Zhirov | Identified exit to Proximity Caves 30371 | -5/Zhirov | Entered Proximity Caves 31135 | -4/Proximity Caves | Discovered exit to Factory (range 7) 31147 | -4/Proximity Caves | Attracted the attention of an 0b10 checkpoint 31340 | -4/Proximity Caves | Entered Factory 31340 | -4/Factory | Evolved 2 slots: Propulsion x1, Utility x1 31342 | -4/Factory | Loaded intel: 291 machine locations 31530 | -4/Factory | Discovered new exit (range 15) 31906 | -4/Factory | Discovered new exit (range 14) 32275 | -4/Factory | Discovered new exit (range 4) 32300 | -4/Factory | Identified exit to Armory 32303 | -4/Factory | Entered Armory 33171 | -4/Armory | Build established: Scavenger-Tank 33652 | -4/Armory | Identified Transdimensional Reconstructor 33652 | -4/Armory | Warped through subspace to slip node 33652 | -4/Armory | Discovered new exit (range 1) 33652 | -4/Armory | Identified exit to Lab 33729 | -4/Armory | Found Gamma Bomb Array 33732 | -4/Armory | Found Fusion Bomb Launcher 33760 | -4/Armory | Found Prototype Processor 33760 | -4/Armory | Identified Exp. Signal Interpreter 33958 | -4/Armory | Discovered new exit (range 4) 33962 | -4/Armory | Identified exit to Research 34287 | -4/Armory | Entered Lab 34291 | -4/Lab | Discovered exit to Research (range 9) 34312 | -4/Lab | Hidden lab's door opened automatically 34312 | -4/Lab | Sensor layout match revealed 34313 | -4/Lab | Gained access to the hidden lab's interior 34387 | -4/Lab | Found Alien Artifact 34519 | -4/Lab | Found Transdimensional Reconstructor 34540 | -4/Lab | Found Integrated Dissipator 34540 | -4/Lab | Installed Integrated Dissipator, increased core heat dissipation (+20) 34551 | -4/Lab | Found Alien Artifact 34551 | -4/Lab | Identified Core Regenerator 34551 | -4/Lab | Used Core Regenerator, restored core integrity (+163) 34645 | -4/Lab | Build established: Skirmisher 35375 | -4/Lab | Found Prototype Energy Gun 35379 | -4/Lab | Found Prototype Energy Cannon 35383 | -4/Lab | Found Med. Regenerative Plating 35386 | -4/Lab | Identified Hyp. EM Gauss Rifle 35388 | -4/Lab | Found Prototype Hackware 36098 | -4/Lab | Entered Research 36098 | -3/Research | Evolved 2 slots: Power x1, Weapon x1 36099 | -3/Research | Identified exit to Quarantine 36298 | -3/Research | Revision forces began assault on 0b10 36310 | -3/Research | Met up with Revision 17++ 36409 | -3/Research | Identified exit to Research 36798 | -3/Research | Research terminal network offline 37028 | -3/Research | Entered Quarantine 37088 | -3/Quarantine | Central database locked down 37336 | -3/Quarantine | Cryocooling Duct disabled 37351 | -3/Quarantine | Ambient heat levels rising (+20) 37351 | -3/Quarantine | Non-combat units ordered to evacuate 37883 | -3/Quarantine | Found Alien Impact Weapon 37964 | -3/Quarantine | Found Alien Artifact 38127 | -3/Quarantine | Discovered exit to Research (range 4) 38142 | -3/Quarantine | Spotted Alpha 7 38151 | -3/Quarantine | Destroyed Alpha 7 38191 | -3/Quarantine | Found Prototype Ballistic Gun 38191 | -3/Quarantine | Identified Multirail 38253 | -3/Quarantine | Found Transdimensional Reconstructor 38264 | -3/Quarantine | Found Alien Artifact 38451 | -3/Quarantine | Identified Core Reset Matrix 38451 | -3/Quarantine | Identified Quantum Router 38451 | -3/Quarantine | Identified Dimensional Node Initializer 38451 | -3/Quarantine | Identified Subatomic Replicator 38451 | -3/Quarantine | Identified Core Stripper 38451 | -3/Quarantine | Watched by a mysterious "MATRIX" hacker 38451 | -3/Quarantine | Identified Potential Cannon 38702 | -3/Quarantine | Found Transdimensional Reconstructor 38704 | -3/Quarantine | Found Transdimensional Reconstructor 38738 | -3/Quarantine | Entered Research 38738 | -2/Research | Evolved 2 slots: Propulsion x1, Utility x1 39144 | -2/Research | Spotted B-90 Cyclops 39155 | -2/Research | Destroyed B-90 Cyclops 39354 | -2/Research | Fabricated Heavy Servo Lattice (x2) 39552 | -2/Research | Lost 3 parts (2u1w) 39666 | -2/Research | Spotted B-90 Cyclops 39705 | -2/Research | Spotted B-90 Cyclops 39735 | -2/Research | Destroyed B-90 Cyclops 39859 | -2/Research | Discovered new exit (range 11) 39880 | -2/Research | Identified exit to Access 40250 | -2/Research | Warped through subspace 40359 | -2/Research | Build established: Scavenger-Skirmisher 40392 | -2/Research | Spotted B-90 Cyclops 40488 | -2/Research | First assault squad dispatched 40516 | -2/Research | Discovered new exit (range 18) 40559 | -2/Research | Identified exit to Testing 40589 | -2/Research | Entered Testing 40659 | -2/Testing | Central database locked down 41303 | -2/Testing | Discovered exit to Access (range 13) 41471 | -2/Testing | System corruption reached 10% 41505 | -2/Testing | Found Prototype Processor 41505 | -2/Testing | Identified Exp. Core Analyzer 41718 | -2/Testing | Found Prototype Ballistic Cannon 41718 | -2/Testing | Identified Omega Cannon 41855 | -2/Testing | Spotted Fortress 41984 | -2/Testing | Discovered new exit (range 5) 41984 | -2/Testing | Discovered new exit (range 6) 41989 | -2/Testing | Identified exit to Section 7 42292 | -2/Testing | Build established: Tank 42330 | -2/Testing | Entered Section 7 42501 | -2/Section 7 | Found Alien Artifact 42501 | -2/Section 7 | Identified Integrity Redistributor 42501 | -2/Section 7 | Used Integrity Redistributor, redistributed integrity from core (-136) 42735 | -2/Section 7 | Build established: Skirmisher 42791 | -2/Section 7 | Found Alien Artifact 42791 | -2/Section 7 | Identified Integrated Mediator 42791 | -2/Section 7 | Installed Integrated Mediator, increased core attachment efficiency 42887 | -2/Section 7 | Found Alien Artifact 42887 | -2/Section 7 | Identified Spacefold Activator 43080 | -2/Section 7 | First assault squad dispatched 43115 | -2/Section 7 | Found Alien Artifact 43115 | -2/Section 7 | Identified Integrated Reactor 43115 | -2/Section 7 | Installed Integrated Reactor, increased core energy generation (+10) 43138 | -2/Section 7 | Spotted S7 Guard 43161 | -2/Section 7 | Destroyed S7 Guard 43195 | -2/Section 7 | Found Alien Artifact 43212 | -2/Section 7 | Identified Integrated Thermoelectric Network 43212 | -2/Section 7 | Installed Integrated Thermoelectric Network, gained heat-energy exchange potential 43283 | -2/Section 7 | Scanned by Researcher 43319 | -2/Section 7 | Spotted S7 Guard 43327 | -2/Section 7 | Spotted B-90 Cyclops 43332 | -2/Section 7 | Found Alien Artifact 43333 | -2/Section 7 | Warped through subspace 43376 | -2/Section 7 | Found Powered Armor 43384 | -2/Section 7 | Found Powered Armor 43435 | -2/Section 7 | Discovered exit to Access (range 15) 43484 | -2/Section 7 | Initialized slip node 43594 | -2/Section 7 | Warped through subspace to slip node 43596 | -2/Section 7 | Identified Core Membrane 43596 | -2/Section 7 | Installed Core Membrane, gained immunity to corruption 43634 | -2/Section 7 | Entered Access 43634 | -1/Access | Evolved 2 slots: Weapon x2 43969 | -1/Access | Build established: Executioner 44262 | -1/Access | Intercept squad dispatched 44275 | -1/Access | Spotted Tracker 44275 | -1/Access | Spotted Tracker 44276 | -1/Access | Destroyed Tracker 44288 | -1/Access | Destroyed Tracker 44290 | -1/Access | Spotted Combat Programmer 44299 | -1/Access | Destroyed Combat Programmer 44315 | -1/Access | Spotted Combat Programmer 44320 | -1/Access | Destroyed Combat Programmer 44329 | -1/Access | Build established: Hacker-Executioner 44404 | -1/Access | Found Prototype Energy Gun 44634 | -1/Access | First assault squad dispatched 44928 | -1/Access | Garrison activated, responded to threat 44989 | -1/Access | Destroyed 10 combat bots 45022 | -1/Access | Intercept squad dispatched 45068 | -1/Access | Spotted Tracker 45068 | -1/Access | Spotted Tracker 45080 | -1/Access | Destroyed Tracker 45084 | -1/Access | Spotted Combat Programmer 45084 | -1/Access | Destroyed Combat Programmer 45096 | -1/Access | Destroyed Tracker 45102 | -1/Access | Spotted Combat Programmer 45103 | -1/Access | Destroyed Combat Programmer 45143 | -1/Access | Destroyed 8 combat bots 45328 | -1/Access | Build established: Scientist-Executioner 45459 | -1/Access | Garrison activated, responded to threat 45608 | -1/Access | Identified Immobilizer 45630 | -1/Access | High security lockdown imminent 45642 | -1/Access | Discovered new exit (range 5) 45642 | -1/Access | Spotted B-99 Colossus 45642 | -1/Access | Spotted B-99 Colossus 45647 | *** | Escaped! Last Messages --------------- 45634_ Core Membrane filtered system corruption (1). 45639_ Spacefolded through Reinforced Barrier. Sealed Barrier opened remotely. 45642_ EXIT=FOUND 45642_ Slug penetrates Reinforced Barrier. 45642_ Knocked back. 45642_ Imp. Quantum Reactor destroyed. 45642_ Asb. Alloy Armor destroyed. 45642_ Penetrated by Slug. 45645_ Exp. Biometal Leg destroyed. 45645_ Knocked back. 45645_ Penetrated by Slug. 45645_ Asb. Focal Cannon destroyed. 45645_ Penetrated by Slug. 45645_ Thunder Leg destroyed. 45646_ Quantum Reactor+ destroyed. 45646_ Knocked back. 45646_ Gamma Bomb Array destroyed. 45646_ Penetrated by Slug. Map ----- +----------------------------------------------------+ | ???????? ????# #????????#|#! ""#?????? | | ?????????????# #????????# # ] #?????? | | ?????????????# #????????# # #?????? | | ?????????????# #????#???#="#########?????? | | ?????????????######/#######?# ###%[##????????????? | | ?????????????# #?# " ==* #????????????? | | ?????????????# #?### % #????????????? | | ?????????????# #???# #????????????? | | ?????????????# #???# #????????????? | | ??????????#??# #???# [% #????????????? | | ??????????# ?# ! #######""######????????? | | ??????????# #==[*! # * ]] #????????? | | ??????????# #= =[!= " ] #????????? | | ??????????# *#% %%[%= "% #????????? | | ??????????#=%/%%%=[!== !! #????????? | | ??????????# #=[=[*!! """ " #????????? | | ??????????# #*%!%!= """G ""! #????????? | | ??????????# ?####[[= ###############????????? | | ??????????# ?# #[[ #??????????????????????? | | ??????????#??##?## #Q###################?????????? | | ??????????????""T""" % ????????? | | ??????????#k """ """ BB ????????? | | ??????????# % BB #???????? | | ??????????# % ???????? | | ??????????# "" ???????? | | ??????????# %@" ???????? | | ??????????# ???????? | | ??????????# k BB ????????? | | ??????????# BB ????????? | | ??????????? ?????????? | | ??????????? ####### ###################?????????? | | ???????????????????##????????????????????????????? | | ?????????????????????????????????????????????????? | | ?????????????????????????????????????????????????? | | ?????????????????????????????????????????????????? | | ?????????????????????????????????????????????????? | | ?????????????????????????????????????????????????? | | ?????????????????????????????????????????????????? | | ?????????????????????????????????????????????????? | | ?????????????????????????????????????????????????? | | ?????????????????????????????????????????????????? | | ?????????????????????????????????????????????????? | | ?????????????????????????????????????????????????? | | ?????????????????????????????????????????????????? | | ?????????????????????????????????????????????????? | | ?????????????????????????????????????????????????? | | ?????????????????????????????????????????????????? | | ?????????????????????????????????????????????????? | | ?????????????????????????????????????????????????? | | ?????????????????????????????????????????????????? | +----------------------------------------------------+ Best States ------------- Heat Dissipation 161 Energy Generation 85 Energy Capacity 1850 Matter Stores 300 Matter Capacity 500 Sight Range 23 Robot Scan Range 18 Terrain Scan Range 16 Terrain Scan Density 210 Cloak Strength 4 Additional Mass Support 20 EM Shielding 4 Armor Coverage 1300 Resistance: KI 30 Resistance: TH 15 Resistance: EX 15 Resistance: EM 15 Resistance: I 15 Resistance: S 15 Resistance: P 15 Weapon Cycling 25 Phase Shifting 8 Evasion (%) 55 Targeting Accuracy 8 Core Analysis 8 Recoil Reduction 2 Matter Filtering 50 Energy Filtering 50 Offensive Hacking 24 Defensive Hacking 25 Authchip Count 1 Item Schematics ----------------- Plasma Cutter | -8/Materials | Hacked Phase Cannon | -7/Zion | Archive Gravmag System | -7/Zion | Archive Drone Bay | -7/Zion | Archive Spear | -7/Zion | Archive KE Penetrator | -7/Zion | Archive EM Shield | -7/Zion | Archive Gatling Laser | -7/Zion | Archive Greatsword | -7/Zion | Archive Magnetic Acceleration Cannon | -7/Zion | Archive Neutrino Core | -7/Zion | Archive Dynamic Insulation System | -7/Zion | Archive Adv. Melee Analysis Suite | -7/Zion | Archive Imp. Field Recycling Unit | -7/Zion | Archive Heavy Servo Lattice | -3/Research | Hacked Exp. Terrain Scan Processor | -2/Section 7 | Archive Prc. Matter Filter | -2/Section 7 | Archive Hds. Centrium Wheel | -2/Section 7 | Archive Exp. Focal Shield | -2/Section 7 | Archive Robot Schematics ------------------ O-24 Administrator | -7/Zion | Archive M-28 Smith | -7/Zion | Archive W-25 Informer | -7/Zion | Archive L-61 Swordsman | -7/Zion | Archive S-43 Plague | -2/Section 7 | Archive Fabricated ------------ Plasma Cutter | x2 | -7/Factory Heavy Servo Lattice | x2 | -2/Research | Authchip Repaired ---------- Nothing Studied --------- Missile Launcher | -8/Materials | Hacked Lgt. Treads | -8/Materials | Hacked Imp. Treads | -8/Materials | Hacked Aluminum Leg | -8/Materials | Hacked Beam Rifle | -8/Materials | Hacked Hvy. Assault Rifle | -8/Materials | Hacked Ion Cannon | -7/Factory | Hacked Enh. Nova Cannon | -3/Research | Hacked Matter Neutralizer | -3/Quarantine | Hacked Centrium Leg | -2/Research | Hacked Quantum Rifle | -2/Research | Hacked Particle Reactor | -2/Research | Hacked Nova Cannon | -2/Research | Hacked Quantum Reactor | -2/Testing | Hacked Hvy. Shield Leg | -2/Testing | Hacked Alien Tech Used ----------------- Integrated Dissipator Transdimensional Reconstructor Core Regenerator Integrity Redistributor Integrated Mediator Spacefold Activator Integrated Reactor Integrated Thermoelectric Network Dimensional Node Initializer Core Membrane Achievements -------------- None Challenges ------------ None Game ------ Seed CombatGravitonNullifier Manual? 0 Play Time 04:08:57 Cumulative 528.6 hours Start 2026.09.10 @ 08:37:43 End 2026.09.10 @ 17:24:34 Sessions 3 Manual Loads 0 Difficulty Rogue Special Mode None Game No. 200 Rogue 200 Adventurer 0 Explorer 0 Win Type 0 Total 20 Types 5/0/9/0/1/0/2/1/1/1 Lore% 83 Gallery% 86 Achievement% 78 Wizard Run 0 Options --------- Layout 1 ASCII 0 Keyboard 1 Movement Arrows Keybinds 0 Fullscreen 1 Font 24/Smallcaps Map View 50x35 Zoom Use 0% Tactical HUD 1 Map Filters NONE Filters NONE Steam 1 RUN: c10a0ec8-ede3-4ca6-93f7-36ca25f4a8e4